{"text_format":"1","workbook":"xlsx","n_sheets":23,"sheets":["Cover Page","Contents","Facility Info","Operational Data","Operational Summary","Perf. Form 1","Energy Form 1","Permit Compliance","Improvements","Public Liasion","CO2 N2O","Residue Quality ","Water","Air (periodic)","Air (CEMS)","HCl","SO2","NOx","TOC","Particulates","CO 95% 10 min","NH3","Template changes log"],"not_rendered":{"charts":7,"images":4,"macros":1,"external_links":0,"defined_names":1,"comments":0,"pivot_tables":0},"unopened":[],"bounds":{"document_bytes":16777216,"sheet_cells":100000,"rows_first":2000,"rows_last":500,"rows_between":2000,"halvings":0,"cell_chars":16384,"cell_head_chars":4096},"cells_cut":0,"cells_raw":0,"read":"whole","date_system":"1900"}

{"sheet":"Cover Page","index":0,"n_rows":53,"n_cols":14,"rows_kept":53,"cut":false,"hidden":false,"merged":[[0,3,5,6],[7,1,23,8],[13,13,18,15],[28,1,28,8],[30,1,30,8],[32,1,32,8],[34,1,34,8],[48,2,48,3],[52,2,52,3],[36,1,36,8],[40,2,40,8],[42,2,42,4],[44,2,44,4],[46,2,46,3],[46,6,46,8],[48,6,48,8]]}
[]
[null,null,null,null,null,null,null,null,null,null,null,null,null,"Version 24.2a (for incinerators) - 27/11/24"]
[]
[null,null,null,null,null,null,null,null,null,null,null,null,null,"Note that there is another version of this template available for co-incinerators"]
[]
[]
[]
[]
[]
[]
[]
[]
[null,null,null,null,null,null,null,null,null,null,null,null,null,"Notes:"]
[null,null,null,null,null,null,null,null,null,null,null,null,null,"This template may require adjustments by individual operators to meet specific reporting requirements as defined in the site Permit(s)"]
[]
[]
[]
[]
[]
[]
[]
[]
[]
[]
[]
[]
[]
[]
[null,"Annual Performance Report 2024"]
[]
[null,"Permit EPR/BJ7093IY "]
[]
[null,"Integra SouthWest Energy Recovery Facility"]
[]
[null,"Marchwood "]
[]
[null,"Veolia"]
[]
[null,"Year:",2024.0]
[]
[null,"Address:","Oceanic Way, Marchwood Industrial Park,Hampshire SO40 4BD"]
[]
[null,"Tel: "]
[]
[null,"Email: "]
[]
[null,"Prepared by:","M Fumagall",null,null,"Position:","Environmetal Technician "]
[]
[null,"Approved by:","Sean Speirs",null,null,"Position:","Facility Manager"]
[]
[null,"Version:",1.0]
[]
[null,"Issue Date:","1st January 2024"]

{"sheet":"Contents","index":1,"n_rows":45,"n_cols":11,"rows_kept":45,"cut":false,"hidden":false,"merged":[[3,1,3,6],[4,1,4,6],[4,10,7,14],[5,1,5,6],[6,1,6,6],[7,1,7,6],[8,1,8,6],[9,1,9,6],[10,1,10,6],[11,1,11,6],[12,1,12,6],[13,1,13,6],[14,1,14,6],[15,1,15,6],[16,1,16,6],[17,1,17,6],[18,1,18,6],[19,1,19,6],[20,1,20,6],[21,1,21,6],[22,1,22,6],[23,1,23,6],[24,1,24,6],[27,1,27,6],[28,1,28,6],[29,1,29,6],[30,1,30,6],[31,1,31,6],[41,1,41,6],[42,1,42,6],[44,0,47,9],[32,1,32,6],[35,1,35,6],[36,1,36,6],[37,1,37,6],[38,1,38,6],[39,1,39,6],[40,1,40,6]]}
[{"$f":"+'Cover Page'!$B$29","v":"Annual Performance Report 2024"},null,null,null,{"$f":"+'Cover Page'!$B$33","v":"Integra SouthWest Energy Recovery Facility"}]
[]
["Contents",null,null,null,null,null,null,null,null,null,"Notes:"]
["Section","Subject",null,null,null,null,null,"Page ",null,null,"Section references and Page nos. to be inserted"]
[null,"Facility Information",null,null,null,null,null,null,null,null,"Sections and Subjects may require adjustment by individual operators to meet specific reporting requirements as defined in the sites Permit(s)"]
[null,"Operational Data"]
[null,"Operational Summary"]
[null,"Performance Form 1"]
[null,"Energy Form 1"]
[null,"Permit Compliance"]
[null,"Improvements"]
[null,"Public Liaison"]
[null,"Carbon dioxide and nitrous oxide emissions"]
[null,"Residue Quality "]
[null,"Emissions to Water"]
[null,"Emissions to Air (periodically monitored)"]
[null,"Emissions to Air (continuously monitored)"]
[null,"Hydrogen Chloride emissions"]
[null,"Sulphur Dioxide emissions"]
[null,"Oxides of Nitrogen emissions"]
[null,"Total Organic Carbon emissions"]
[null,"Particulate Matter emissions"]
[null,"Carbon Monoxide emissions"]
[null,"Ammonia emissions"]
[]
[]
["Version Control"]
["Section","Information",null,null,null,null,null,"Date"]
[]
[]
[]
[]
[]
[]
["Distribution"]
["Copy","Name, Role",null,null,null,null,null,"No."]
[]
[]
[]
[]
[]
[]
[]
[]
["This report is required under the Industrial Emissions Directive’s Article 55(2) requirements on reporting and public information on waste incineration plants and co-incineration plants, which require the operator to produce an annual report on the functioning and monitoring of the plant and make it available to the public. "]

{"sheet":"Facility Info","index":2,"n_rows":22,"n_cols":11,"rows_kept":22,"cut":false,"hidden":false,"merged":[[4,0,17,8],[4,10,13,13],[21,0,59,8],[21,10,30,13]]}
[{"$f":"+'Cover Page'!$B$29","v":"Annual Performance Report 2024"},null,null,null,{"$f":"+'Cover Page'!$B$33","v":"Integra SouthWest Energy Recovery Facility"}]
[]
["Plant Description and Design",null,null,null,null,null,null,null,null,null,"Notes:"]
[]
["Marchwood ERF was the second of its kind to be built in Hampshire and is a leading example of best environmental practice for waste treatment. Waste produced by Southampton City and South West Hampshire Districts is processed at this ERF, providing a long term, sustainable solution for waste recovery. It recovers heat energy from the waste to produce steam, which is used to generate electricity supplied to the National Grid. Strict environmental controls and proven operating experience ensure the Marchwood ERF is a centre of excellence and a benchmark for the industry.                                                                                                                                                                                                                                                        \n                                                                                                                                                                                                                                                                                                                                                                                                Technical details of the plant:\n\nMaximum Permitted Refuse throughput – 220,000 tonnes per annum, with approximately 13 tonnes per hour burning capacity per stream\nStorage capacity – four days full plant capacity\nNumber of tipping bays – 10\nSteam output – 76 tonnes of steam per hour at 400*C and 45 bar\nFlue gas treatment – CNIM semi-dry lime scrubber followed by high performance bag filters, discharging into a 65 metre high chimney\nEnergy produced – maximum generating capacity 17MW",null,null,null,null,null,null,null,null,null,"Include summary of plant design, design capacity, no. of combustion lines, electrical and heat capacity and any other general information that describes the facility, its location and purpose "]
[]
[]
[]
[]
[]
[]
[]
[]
[]
[]
[]
[]
[]
[]
["Summary of Operational Processes and Procedures"]
[]
["The Marchwood ERF forms part of Veolia’s Integrated Contracts, the most progressive integrated waste management system in Britain which provides sustainable waste management for all the domestic waste in the county.\n\nThe ERF is regulated by the Environment Agency and is certified in compliance with:\nISO 9001 : 2008\nISO 14001 : 2004, \nOHAS 18001 : 2007, and\nISO 25999 Solid Residue Outputs",null,null,null,null,null,null,null,null,null,"Include summary of key processes and procedures such as (but not limited to); waste reception, control rooms, grate, bed and boiler, energy & heat  generation, cooling systems, residue management, emission controls, health and safety systems, maintenance"]

{"sheet":"Operational Data","index":3,"n_rows":65,"n_cols":10,"rows_kept":65,"cut":false,"hidden":false,"merged":[[23,1,26,1],[28,1,29,1],[33,1,38,1],[36,6,38,7],[42,6,43,7],[48,6,49,6],[52,0,56,0],[3,1,3,2],[5,9,7,9],[7,1,19,1],[9,6,9,7],[9,9,20,9],[18,6,19,7],[21,9,25,9]]}
[{"$f":"+'Cover Page'!$B$29","v":"Annual Performance Report 2024"},null,null,null,{"$f":"+'Cover Page'!$B$33","v":"Integra SouthWest Energy Recovery Facility"}]
[]
["Operational Data"]
["Plant Size",null,null,"tonnes pa",null,"MWth",null,"MWe",null,"Notes:"]
["No. of combustion lines",2.0,null,"No. of Turbines:",null,1.0,null,null,null,"* - RDF to include SRF "]
[null,null,null,null,null,null,null,null,null,"** - Combusted tonnage = tonnes delivered in period + (tonnes in bunker at start of period – tonnes in bunker at end of period), or equivalent calculation depending on plant type"]
["Waste types received","Unit","Q1","Q2","Q3","Q4","Year Total","%"]
["Household / Local Authority","tonnes",46592.0,41613.0,46129.0,43988.0,{"$f":"SUM(C8:F8)","v":178322},{"$f":"IF(G8>0,G8/$G$18,\"-\")","v":0.8668290057}]
["Commercial & Industrial ",null,6786.0,5383.0,6807.0,7776.0,26752,0.1300423367,null,"*** - CHP plants only"]
["Hazardous ",null,null,null,null,null,null,null,null,"**** Availability Definition: 'the availability of a line is to be calculated by the number of hours the line reported Continuously Monitored emission levels to the Regulator through the calendar year divided by the total number of hours in that year. \n\nThe overall plant availability is calculated as the Mean of all lines in the plant. For clarity this includes periods of abnormal operation.'  \n\nRationale: The primary function of an Energy from Waste facility is the disposal of waste. It follows therefore that the availability of a plant is determined by the period of time a facility spends undertaking this activity."]
["Clinical",null,84.0,84.0,93.0,99.0,{"$f":"SUM(C11:F11)","v":360},{"$f":"IF(G11>0,G11/$G$18,\"-\")","v":0.001749971636}]
["Waste wood (biomass) "]
["Refuse Derived Fuel * - H'hold/LA"]
["Refuse Derived Fuel *  - C&I SRF",null,null,null,null,null,{"$f":"SUM(C14:F14)","v":0}]
["SRF",null,0.0,11.0,64.62,208.0,283.62,{"$f":"IF(G15>0,G15/$G$18,\"-\")","v":0.001378685987}]
["Other [Please specify]"]
["Other [Please specify]"]
["Total waste received",null,{"$f":"SUM(C8:C17)","v":53462},47091,53093.62,52071,{"$f":"SUM(C18:F18)","v":205717.62}]
["Rejected Waste "]
["Unprocessed waste transferred out"]
["Total waste combusted **",null,54262.0,45130.0,52962.0,53676.0,{"$f":"SUM(C21:F21)","v":206030},{"$f":"IF(G21>0,G21/$G$18,\"-\")","v":1.001518489}]
[null,null,null,null,null,null,null,null,null,"Password for protected cells\nA password has been set to prevent accidental  editing of cells with formulae. \nIf you still need to make an edit for some reason then the password = 1234"]
["Energy Usage / Export","Unit","Q1","Q2","Q3","Q4","Year Total","KWh/te"]
["Power Generated","MWh",34698.39,26980.61,32784.5,32211.35,{"$f":"SUM(C24:F24)","v":126674.85},{"$f":"IF(G24>0,G24*1000/$G$21,\"-\")","v":614.836917}]
["Power Exported",null,30675.7,24859.8,29818.2,29620.3,114974,558.0449449]
["Power Used on site",null,{"$f":"C24-C25+C27","v":4022.69},2270.01,2979.1,2612.65,11884.45,57.6831044]
["Power Imported",null,0.0,149.2,12.8,21.6,183.6,0.8911323594]
["Parasitic Load","%",{"$f":"IF(C24>0,1-C25/(C24+C27),\"-\")","v":0.1159330447},0.08367216726,0.09083369668,0.08105525557,0.09368276217,{"$f":"IF(G27>0,G27*1000/$G$21,\"-\")","v":0.8911323594}]
["Thermal Energy Produced ***","MWh",null,null,null,null,{"$f":"SUM(C29:F29)","v":0},{"$f":"IF(G29>0,G29*1000/$G$21,\"-\")","v":"-"}]
["Thermal Energy Exported ***",null,null,null,null,null,0,"-"]
["R1 value (if applicable)","R1"]
[]
["Waste Disposal & Recovery","Unit","Q1","Q2","Q3","Q4","Year Total","% inputs"]
["APC Residues - produced","tonnes",1417.73,1222.16,1373.54,1509.68,{"$f":"SUM(C34:F34)","v":5523.11},{"$f":"IF(G34>0,G34/$G$21,\"-\")","v":0.02680730962}]
["IBA - produced",null,8730.24,7465.16,8853.72,8999.12,34048.24,0.1652586517]
["Metals recycling",null,814.96,616.24,741.04,697.98,2870.22,0.013931078]
["Other"]
["Other"]
["Other"]
[]
["Raw Material Usage","Unit","Q1","Q2","Q3","Q4","Year Total","kg or Ltr /te"]
["Mains Water","ltrs",{"$f":"14383*1000","v":14383000},{"$f":"12411*1000","v":12411000},{"$f":"14080*1000","v":14080000},{"$f":"16806*1000","v":16806000},{"$f":"SUM(C42:F42)","v":57680000},{"$f":"IF(G42>0,G42/$G$21,\"-\")","v":279.9592292}]
["Other Water","ltrs"]
["Ammonia","kgs"]
["Urea","kgs",{"$f":"81*1000","v":81000},{"$f":"62*1000","v":62000},{"$f":"85*1000","v":85000},{"$f":"78*1000","v":78000},{"$f":"SUM(C45:F45)","v":306000},{"$f":"IF(G45>0,G45/$G$21,\"-\")","v":1.485220599}]
["Activated Carbon","kgs",{"$f":"15*1000","v":15000},{"$f":"24.5*1000","v":24500},{"$f":"22*1000","v":22000},{"$f":"34*1000","v":34000},95500,0.4635247294]
["Lime / hydrated lime","kgs",{"$f":"345*1000","v":345000},{"$f":"385.63*1000","v":385630},{"$f":"397.73*1000","v":397730},{"$f":"486.9*1000","v":486900},1615260,7.839926224]
["Fuel oil","ltrs",27785.0,58650.0,36674.0,52517.0,175626,0.8524292579]
["Gas","cuf"]
["Other"]
[]
["Summary ","Line/Unit","Q1","Q2","Q3","Q4","Year Total",null,"Hrs in year "]
["Availability of waste combustion by line, hrs ****",1.0,2173.0,1851.0,2178.0,2141.0,{"$f":"SUM(C53:F53)","v":8343},{"$f":"+G53/$I$53","v":0.949795082},8784.0]
[null,2.0,2182.0,1828.0,2198.0,2202.0,8410,0.9574225865]
[null,3.0,null,null,null,null,0,0]
[null,4.0,null,null,null,null,0,0]
[null,5.0,null,null,null,null,0,0]
["Overall Availability, mean avg. of all lines, hrs",null,null,null,null,null,{"$f":"AVERAGE(G53:G54)","v":8376.5},0.9536088342]
["Hours of turbine operations, hrs",1.0,2183.0,1958.0,2197.0,2196.0,{"$f":"SUM(C59:F59)","v":8534},0.9715391621]
["Hours of turbine operations, hrs",2.0,null,null,null,null,0,0]
["Hours of heat / steam export",null,null,null,null,null,0,{"$f":"IF(B61>0,G60/I53,\"n/a\")","v":"n/a"}]
["Net Calorific Value of waste","MJ/kg",8.85,8.889,9.023,8.927,{"$f":"AVERAGE(C62:F62)","v":8.92225}]
["Abnormal Events","qty.",null,null,null,null,{"$f":"SUM(C63:F63)","v":0},{"$f":"IF(G63>0,\"yes\",\"no\")","v":"no"}]
["Abnormal operation","hours",null,null,null,null,0,{"$f":"+(G64)/I53","v":0}]
["Permit Breaches","qty.",1.0,null,null,null,1,"Yes"]

{"sheet":"Operational Summary","index":4,"n_rows":66,"n_cols":11,"rows_kept":66,"cut":false,"hidden":false,"merged":[[55,1,55,8],[56,1,56,8],[57,1,57,8],[58,1,58,8],[59,1,59,8],[60,1,60,8],[61,1,61,8],[62,1,62,8],[63,1,63,8],[64,1,64,8],[65,1,65,8],[66,1,66,8],[67,1,67,8],[68,1,68,8],[69,1,69,8],[4,0,26,8],[4,10,13,13],[30,0,51,8],[30,10,39,13],[53,1,53,8],[54,1,54,8],[54,10,64,13]]}
[{"$f":"+'Cover Page'!$B$29","v":"Annual Performance Report 2024"},null,null,null,{"$f":"+'Cover Page'!$B$33","v":"Integra SouthWest Energy Recovery Facility"}]
[]
["Summary of Plant Operations and Maintenance during the reporting year",null,null,null,null,null,null,null,null,null,"Notes:"]
[]
["Outer economiser tube bundle completely renewed during 2024 planned outage. Planned preventative maintenance was conducted in accordance with the life-cycle schedule of the Facility. ",null,null,null,null,null,null,null,null,null,"Include summary of key operational and/or maintenance activity undertaken in the year, such as any major component upgrades and/or replacements "]
[]
[]
[]
[]
[]
[]
[]
[]
[]
[]
[]
[]
[]
[]
[]
[]
[]
[]
[]
[]
[]
[]
[]
["Summary of Residue Handling for the reporting year"]
[]
["The Incinerator Bottom Ash (IBA) is transported by Veolia Haulage to an aggregate processing facility situated in Longparish, Hampshire. The IBA is reprocessed into a number of different graded aggregates, ferrous and non ferrous metal products, which are then utilised in the construction and metal industry.\n\nFerrous metals removed during on site processing of IBA are forwarded to a recycling facility.  The metals are separated into individual fractions, and are sent on for utilisation in the metal industry.\n\nThe fine particulate matter, known as Air Pollution Control Residue (APCr), is removed from the process by a fabric filter. The APCr is sent to Empire, another Veolia site located in Aldridge, West Midlands where it is used to neutralise spent acid wastes before final disposal. \n\nAll wastes generated by the activities is treated in accordance with the waste hierarchy referred to in Article 4 of the Waste Framework Directive.  All avenues for waste processing are continuously monitored and reviewed, any opportunities to improve on the current methods would be implemented at the earliest opportunity  ",null,null,null,null,null,null,null,null,null,"Include in here a summary of residue handling regimes and destinations "]
[]
[]
[]
[]
[]
[]
[]
[]
[]
[]
[]
[]
[]
[]
[]
[]
[]
[]
[]
[]
[]
[]
[{"$f":"+'Cover Page'!C39","v":2024},"Plant shut-downs"]
["Date","Reason for shut-down",null,null,null,null,null,null,null,null,"Provide a very brief reason for plant shut-down e.g. \"Shut-down prior to major outage\"; \"Emergency shut-down due to boiler tube leak\"\n\nThere is no need to include periods of hot-standby here (e.g. to clear feed chute hopper blockages).\n\nFor clinical waste incinerators which require regular shut-downs for boiler cleaning, there is no need to record these here. "]
["7th February","Controlled shutdown in order to clear riddling hopper blockage - Line 1"]
["16th February","Controlled shutdown in order to clear ash discharger blockage - Line 1"]
["14th April - 4th May 2024","Shut-down for 2024 planned outage, next due in 2026 "]
["18th July","Both boilers taken out of service following a turbine trip"]
["10th August ","Initiated shutdown due to pipework blockage - Line 1"]
["24th - 25th September","Controlled shutdown in order to clear ash discharger blockage - Line 1"]
["3rd-4th October","Both boilers taken out of service due to a crane issue"]
["14th November","Controlled shutdown in order to clear ash discharger blockage - Line 1"]
["17th November","B1 Shutdown for grate repair"]
["20th Nov- 22nd Nov","B1 Shutdown for grate repair"]
["25th December","Boiler 1 offline due to mechanical issues affecting the crane"]

{"sheet":"Perf. Form 1","index":5,"n_rows":54,"n_cols":10,"rows_kept":54,"cut":false,"hidden":false,"merged":[[12,0,12,1],[13,0,13,1],[13,2,13,3],[13,4,13,5],[13,6,13,7],[13,8,13,9],[14,8,14,9],[14,0,14,3],[15,0,15,1],[15,2,15,3],[15,4,15,5],[15,6,15,7],[15,8,15,9],[16,0,16,9],[18,4,18,5],[18,6,18,7],[17,0,17,1],[17,2,17,3],[17,4,17,5],[17,6,17,7],[17,8,17,9],[18,2,18,3],[18,8,18,9],[20,6,20,7],[20,8,20,9],[18,0,18,1],[19,0,19,1],[19,2,19,3],[19,4,19,5],[19,6,19,7],[19,8,19,9],[20,0,20,1],[22,0,22,3],[22,4,22,5],[22,6,22,7],[22,8,22,9],[23,4,23,5],[23,6,23,7],[23,8,23,9],[23,0,23,3],[25,0,25,9],[26,0,28,9],[31,0,31,3],[31,7,31,8],[32,4,32,5],[32,7,32,8],[32,0,32,3],[33,0,33,3],[33,4,33,5],[33,7,33,8],[34,0,34,3],[34,4,34,5],[34,7,34,8],[36,7,36,8],[37,7,37,8],[35,0,35,3],[35,4,35,5],[35,7,35,8],[36,0,36,3],[36,4,36,5],[37,0,37,3],[37,4,37,5],[49,0,49,9],[50,0,51,9],[38,0,38,9],[39,0,40,9],[43,0,43,1],[43,2,43,9],[45,0,45,1],[46,0,46,1],[47,0,47,1],[2,0,2,4],[2,6,2,8],[3,1,3,4],[5,3,5,4],[5,6,5,7],[8,0,8,1],[8,2,8,3],[10,6,10,7],[10,8,10,9],[8,4,8,5],[8,6,8,7],[8,8,8,9],[9,0,9,9],[10,0,10,1],[10,2,10,3],[10,4,10,5],[12,4,12,5],[12,6,12,7],[11,0,11,1],[11,2,11,3],[11,4,11,5],[11,6,11,7],[11,8,11,9],[12,2,12,3],[12,8,12,9],[14,4,14,5],[14,6,14,7],[20,2,20,3],[20,4,20,5],[21,0,21,1],[21,2,21,3],[21,4,21,5],[21,6,21,7],[21,8,21,9]]}
[{"$f":"+'Cover Page'!C39","v":2024}," Annual Reporting Performance Form 1"]
[]
[{"$f":"+'Cover Page'!B31","v":"Permit EPR/BJ7093IY "},null,null,null,null,"Operator: ",{"$f":"+'Cover Page'!B37","v":"Veolia"}]
["Facility:",{"$f":"+'Cover Page'!B33:I33","v":"Integra SouthWest Energy Recovery Facility"},null,null,null,"Form:","Performance 1"]
[]
["Reporting  Period from: ",null,null,"01.10.2024",null,"to:","31.12.2024"]
[]
[{"$f":"+A1","v":2024},"Annual Reporting of Waste Disposal and Recovery"]
["Waste Description",null,"Disposal Route(s)",null,"Disposal Tonnes",null,"Recovery Tonnes",null,"% / tonne of waste incinerated"]
["1) Hazardous Wastes"]
["APC Residues",null,"D9",null,5523.0,null,null,null,{"$f":"IF((E11+G11)>0,(E11+G11)/'Operational Data'!$G$21, \"-\")","v":0.02680677571}]
["IBA",null,null,null,null,null,null,null,{"$f":"IF((E12+G12)>0,(E12+G12)/'Operational Data'!$G$21, \"-\")","v":"-"}]
[null,null,null,null,null,null,null,null,{"$f":"IF((E13+G13)>0,(E13+G13)/'Operational Data'!$G$21, \"-\")","v":"-"}]
[null,null,null,null,null,null,null,null,{"$f":"IF((E14+G14)>0,(E14+G14)/'Operational Data'!$G$21, \"-\")","v":"-"}]
["Total Hazardous Waste",null,null,null,{"$f":"SUM(E11:F14)","v":5523},null,{"$f":"SUM(G11:H14)","v":0},null,{"$f":"IF((E15+G15)>0,(E15+G15)/'Operational Data'!$G$21, \"-\")","v":0.02680677571}]
[]
["2) Non-Hazardous Wastes"]
["IBA",null,"R5",null,34048.0,null,null,null,{"$f":"IF((E18+G18)>0,(E18+G18)/'Operational Data'!$G$21, \"-\")","v":0.1652574868}]
["Ferrous Metal",null,"R4",null,2870.0,null,null,null,{"$f":"IF((E19+G19)>0,(E19+G19)/'Operational Data'!$G$21, \"-\")","v":0.01393001019}]
["Process Water",null,null,null,null,null,null,null,{"$f":"IF((E20+G20)>0,(E20+G20)/'Operational Data'!$G$21, \"-\")","v":"-"}]
[null,null,null,null,null,null,null,null,{"$f":"IF((E21+G21)>0,(E21+G21)/'Operational Data'!$G$21, \"-\")","v":"-"}]
[null,null,null,null,null,null,null,null,{"$f":"IF((E22+G22)>0,(E22+G22)/'Operational Data'!$G$21, \"-\")","v":"-"}]
["Total Non-Hazardous Waste",null,null,null,{"$f":"SUM(E18:F22)","v":36918},null,{"$f":"SUM(G18:H22)","v":0},null,{"$f":"IF((E23+G23)>0,(E23+G23)/'Operational Data'!$G$21, \"-\")","v":0.179187497}]
["TOTAL WASTE",null,null,null,{"$f":"+E23+E15","v":42441},null,{"$f":"+G23+G15","v":0},null,{"$f":"IF((E24+G24)>0,(E24+G24)/'Operational Data'!$G$21, \"-\")","v":0.2059942727}]
[]
["Operator’s comments :"]
[]
[]
[]
[]
[{"$f":"+A1","v":2024},"Annual Reporting of Water and Other Raw Material Usage"]
["Raw Material",null,null,null,"Usage",null,"Unit","Specific Usage",null,"Unit"]
["Mains Water",null,null,null,{"$f":"+'Operational Data'!G42/1000","v":57680},null,"m3",{"$f":"IF(E33>0,E33/'Operational Data'!$G$21,\"-\")","v":0.2799592292},null,"m3/te"]
["Total Water",null,null,null,{"$f":"+'Operational Data'!G43+'Operational Data'!G42/1000","v":57680},null,"m3",{"$f":"IF(E34>0,E34/'Operational Data'!$G$21,\"-\")","v":0.2799592292},null,"m3/te"]
["Urea / Ammonia",null,null,null,{"$f":"+'Operational Data'!G45","v":306000},null,"kg",{"$f":"IF(E35>0,E35/'Operational Data'!$G$21,\"-\")","v":1.485220599},null,"kg/te"]
["Activated Carbon",null,null,null,{"$f":"+'Operational Data'!G46","v":95500},null,"kg",{"$f":"IF(E36>0,E36/'Operational Data'!$G$21,\"-\")","v":0.4635247294},null,"kg/te"]
["Lime / hydrated lime / Sodium Bicarb.",null,null,null,{"$f":"+'Operational Data'!G47","v":1615260},null,"kg",{"$f":"IF(E37>0,E37/'Operational Data'!$G$21,\"-\")","v":7.839926224},null,"kg/te"]
[]
["Operator’s comments :"]
[]
[]
[]
[{"$f":"+A31","v":2024},"Annual Reporting of other performance indicators "]
["Parameter",null,"Results by Line"]
[null,null,"A1","A2","A3","A4","A5",null,"Turbine "]
["Operating hours for the year, hours",null,"8, 343",8410.0,null,null,null,null,8534.4]
["Number of periods of abnormal operation, qty.",null,0.0,0.0]
["Cumulative hours of abnormal operation for this year, hours",null,0.0,0.0]
[]
["Operator’s comments :"]
[]
[]
[]
["Signed: ",null,null,null,null,null,"Date:","20.01.2025"]

{"sheet":"Energy Form 1","index":6,"n_rows":29,"n_cols":8,"rows_kept":29,"cut":false,"hidden":false,"merged":[[2,6,2,8],[4,1,4,4],[6,3,6,4],[6,6,6,7],[8,0,8,2],[8,3,8,4],[8,6,8,8],[10,6,10,8],[11,6,11,8],[12,6,12,8],[13,6,13,8],[14,6,14,8],[15,6,15,8],[9,0,9,2],[9,3,9,4],[9,6,9,8],[10,0,10,2],[10,3,10,4],[11,0,11,2],[11,3,11,4],[15,0,15,2],[17,0,17,8],[18,0,24,8],[12,0,12,2],[12,3,12,4],[13,0,13,2],[13,3,13,4],[14,0,14,2],[14,3,14,4],[15,3,15,4]]}
[{"$f":"+'Cover Page'!C39","v":2024}," Annual Reporting of Energy Usage/Export"]
[]
[{"$f":"+'Cover Page'!B31","v":"Permit EPR/BJ7093IY "},null,null,null,null,"Operator: ",{"$f":"+'Cover Page'!B37","v":"Veolia"}]
[]
["Facility:",{"$f":"+'Cover Page'!B33:I33","v":"Integra SouthWest Energy Recovery Facility"},null,null,null,"Form:","Energy 1"]
[]
["Reporting  Period from: ",null,null,"01.01.2024",null,"to:","31.12.2024"]
[]
["Energy Source",null,null,"Energy Usage",null,"Unit","Specific Usage (KWh/tonne incinerated"]
["Electricity Produced",null,null,{"$f":"+'Operational Data'!G24","v":126674.85},null,"MWh",{"$f":"+'Operational Data'!H24","v":614.836917}]
["Electricity Imported   ",null,null,{"$f":"+'Operational Data'!G27","v":183.6},null,"MWh",{"$f":"+'Operational Data'!H27","v":0.8911323594}]
["Electricity Exported",null,null,{"$f":"+'Operational Data'!G25","v":114974},null,"MWh",{"$f":"+'Operational Data'!H25","v":558.0449449}]
["Gas Oil",null,null,null,null,"tonnes",0.0]
["Steam/hot water exported",null,null,{"$f":"+'Operational Data'!G30","v":0},null,"GWh",0.0]
[]
[]
[]
["Operator’s comments :"]
[]
[]
[]
[]
[]
[]
[]
[]
[]
[]
["Signed: ",null,null,null,null,null,"Date:","20.01.2025"]

{"sheet":"Permit Compliance","index":7,"n_rows":31,"n_cols":12,"rows_kept":31,"cut":false,"hidden":false,"merged":[[9,2,9,4],[9,5,9,8],[10,0,10,1],[10,2,10,4],[9,0,9,1],[11,0,11,1],[11,2,11,4],[11,5,11,8],[12,0,12,1],[12,2,12,4],[13,2,13,4],[13,5,13,8],[14,0,14,1],[14,2,14,4],[24,3,24,5],[25,3,25,5],[26,0,26,8],[28,0,28,10],[29,1,29,3],[29,4,29,6],[29,7,29,9],[32,4,32,6],[32,7,32,9],[33,1,33,3],[33,4,33,6],[33,7,33,9],[34,1,34,3],[34,4,34,6],[34,7,34,9],[35,4,35,8],[30,1,30,3],[30,4,30,6],[30,7,30,9],[31,1,31,3],[31,4,31,6],[31,7,31,9],[32,1,32,3],[8,0,8,1],[13,0,13,1],[14,5,14,8],[15,0,15,1],[15,2,15,4],[15,5,15,8],[16,0,16,1],[16,2,16,4],[16,5,16,8],[18,0,18,10],[7,0,7,1],[7,2,7,8],[8,2,8,4],[8,5,8,8],[8,11,20,11],[10,5,10,8],[12,5,12,8],[19,7,19,8],[23,1,23,2],[24,1,24,2],[25,1,25,2],[19,1,19,2],[19,3,19,5],[21,1,21,2],[21,3,21,5],[22,1,22,2],[22,3,22,5],[23,3,23,5]]}
[{"$f":"+'Cover Page'!$B$29","v":"Annual Performance Report 2024"},null,null,null,{"$f":"+'Cover Page'!$B$33","v":"Integra SouthWest Energy Recovery Facility"}]
[]
["Summary of Permit Compliance"]
[]
["Compliance with permit limits for continuously monitored pollutants"]
[]
["The plant met its emission limits as shown in the table below:"]
["Substance",null,"Percentage time compliant during operationNote 1",null,null,null,null,null,null,null,null,"Notes:"]
[null,null,"Half-hourly limit",null,null,"Daily limit",null,null,null,null,null,"Note 1: Please report to 2 decimal places, i.e. xx.xx%\n\nNote 2: Please enter into this table any permit non-compliances that the EA has given a CCS score for. Please also enter any other non-compliances which you have notified to the EA (e.g. ELV exceedances) but which have not yet been assessed by the EA. There is no need to enter any notifications which were subsequently assessed by the EA not to be permit breaches.  \n\nNote 3: Please enter information here (rather than just referencing the notifications that were sent to the EA) including where relevant the incineration line reference, pollutant and value of the measured result for any ELV exceedances.   \n\n"]
["Particulates",null,"100 %",null,null,"100 %"]
["Oxides of nitrogen",null,1.0,null,null,"100 %"]
["Sulphur dioxide",null,"100 %",null,null,"100 %"]
["Carbon monoxide",null,"100 % or \n100% 95% of 10-min averages",null,null,"100 %"]
["Total organic carbon",null,"100 %",null,null,"100 %"]
["Hydrogen chloride",null,"99.46 %",null,null,"100 %"]
["Hydrogen fluoride",null,"100 %",null,null,"100 %"]
[]
[]
["Summary of non-compliances under the permit Note 2"]
["Date","Summary of non-compliance Note 3",null,"Reason ",null,null,"Measures taken to prevent reoccurrence","CCS score if applicable*"]
[null,null,null,null,null,null,null,"Impact","Root cause"]
["09.01.2024","HCl HH average of 87.07 mg/m3",null,"Sudden increase of HCL emissions",null,null,"Re-training of plant operators and share of best practise to the wider group",4.0,"C1"]
[]
[]
[]
[]
["*If the Environment Agency (EA) has given a Compliance Classification Scheme (CCS) score due to a permit non-compliance it should be entered here (CCS4 = No impact; CCS3 = Minor impact; CCS2 = Significant impact; CCS1 = Major impact). If the EA has not yet assessed a non-compliance which you have notified to them, these columns should be left blank. Enter N/A if no score was given for the root cause.  "]
[]
["Summary of any complaints received and actions to taken to resolve them."]
["Date","Summary of complaint [including Line/Reference]",null,null,"Reason (including whether substantiated by the operator or the EA)",null,null,"Measures taken to prevent reoccurrence"]
["N/A","N/A",null,null,"N/A",null,null,"N/A"]

{"sheet":"Improvements","index":8,"n_rows":30,"n_cols":5,"rows_kept":30,"cut":false,"hidden":false,"merged":[[4,0,4,8],[5,0,13,8],[15,0,15,8],[16,0,27,8],[28,0,28,8],[29,0,38,8]]}
[{"$f":"+'Cover Page'!$B$29","v":"Annual Performance Report 2024"},null,null,null,{"$f":"+'Cover Page'!$B$33","v":"Integra SouthWest Energy Recovery Facility"}]
[]
["Summary of Plant Improvements"]
[]
["Summary of any efficiency improvements that have been completed within the year."]
["Continuous planned preventive maintenance strategy and streamlining of assets"]
[]
[]
[]
[]
[]
[]
[]
[]
[]
["Summary of any permit improvement conditions that have been completed within the year and the resulting environmental benefits."]
["Improvement Condition number IC2 states that “The operator shall submit a report to the\nEnvironment Agency for approval on whether waste feed to the plant can be proven to have a low and stable mercury content. The report shall have regard to BAT 4 of the BAT conclusions, be based on historic mercury emissions monitoring data and have regard to the Environment Agency Mercury Monitoring Protocol.”\nImprovement Condition number IC3 states that “The operator shall submit a report to the\nEnvironment Agency for approval on whether dioxin emissions to air are stable. The report shall\nhave regard to BAT 4 of the BAT conclusions, be based on historic dioxin emissions monitoring\ndata and have regard to the Environment Agency Dioxins Monitoring Protocol.\"\nThe EA reviewed the dioxins and mercury reports submitted and further information which was provided in response to the requirements of improvement conditions 2 and 3 in Schedule 1 of\nthe Environmental Permit. These reports were submitted in line with permit condition 2.4.1 and, following the EA's review, they advised that we do not need to install continuous mercury monitors or continuous samplers for dioxins at this time due to the low data set. IC2 and IC3 have been discharged"]
[]
[]
[]
[]
[]
[]
[]
[]
[]
[]
[]
["Summary of any other improvements made to the plant or planned to be made and a summary of the resulting environmental benefits."]
["Every practicable opportunity to use the heat rejected at the steam condensers for beneficial local use is investigated. To date no cost effective or practicable options have become available. The site will continue to identify all possible opportunities, and investigate the practicalities of its installation.  All viable developments will be implemented at the earliest opportunity.\n\nRaw materials used on site are trended by the Facility Manager and recorded on the company intranet so that benchmarks are visible to the group. These Key Performance Indicators (KPIs) are reviewed daily, weekly, monthly and annually. If any opportunities arise which would result in reduction or avoidance in raw material usage, they will be implemented at the earliest convenience. \n\n"]

{"sheet":"Public Liasion","index":9,"n_rows":29,"n_cols":5,"rows_kept":29,"cut":false,"hidden":false,"merged":[[10,0,11,1],[12,0,13,1],[16,0,16,1],[17,0,18,1],[19,0,20,1],[21,0,22,1],[23,0,24,1],[25,0,26,1],[5,0,5,1],[5,2,5,8],[6,0,7,1],[6,2,7,8],[8,0,9,1],[8,2,9,8],[10,2,11,8],[25,2,26,8],[28,0,28,8],[12,2,13,8],[15,0,15,8],[16,2,16,8],[17,2,18,8],[19,2,20,8],[21,2,22,8],[23,2,24,8]]}
[{"$f":"+'Cover Page'!$B$29","v":"Annual Performance Report 2024"},null,null,null,{"$f":"+'Cover Page'!$B$33","v":"Integra SouthWest Energy Recovery Facility"}]
[]
["Details of Public & Stakeholder Liaison"]
[]
["Summary of events held during the reporting year."]
["Date",null,"Description"]
["9th October 2024 ",null,"Veolia Wonder Day: Veolia invites visitors from across the county to come along and discover what happens at our waste management facilities. Behind the scenes tours and activities offer an insight into the entire integrated network of our recycling and recovery operations and the importance of disposing of your waste properly. A successful 125 people prebooked and attended on the day.                                                       \n                                                                                                     \n                                                "]
[]
[]
[]
[]
[]
[]
[]
[]
["List of events planned for next year"]
["Date",null,"Description"]
["TBC",null,"Veolia Wonder Day 2025"]
[]
[]
[]
[]
[]
[]
[]
[]
[]
[]
["If you wish to be involved in the public liaison programme, please contact _________________"]

{"sheet":"CO2 N2O","index":10,"n_rows":24,"n_cols":6,"rows_kept":24,"cut":false,"hidden":false,"merged":[[15,2,15,3],[18,2,18,3],[20,2,20,3],[23,1,23,3],[4,0,4,3],[8,2,8,3],[9,0,9,3],[11,2,11,3],[12,0,12,1],[13,0,13,3],[16,0,16,3]]}
[{"$f":"+'Cover Page'!$B$29","v":"Annual Performance Report 2024"},null,{"$f":"+'Cover Page'!$B$33","v":"Integra SouthWest Energy Recovery Facility"}]
[]
["Carbon dioxide emissions and biogenic content of waste inputs",null,null,null,null,"Notes:"]
[]
["Carbon dioxide emissions (all types of plant)"]
[null,"Annual mass of carbon dioxide released","tonnes ",192190.27]
[null,"Annual mass of carbon dioxide released per tonne of waste burned","t CO2 / t waste ","0.93"]
[null,"Annual mass of carbon dioxide released per MWh of energy exported","t CO2 / MWh export ",1.67]
[null,"Description of how annual carbon dioxide mass emission has been calculated. \nSee Note 1","CEMS data",null,null,"Note 1: All permits require operators to continuously monitor CO2 to EN14181 and flow to BS EN 16911-2 (unless otherwise agreed in writing). Operators must therefore use the results from these instruments to calculate their annual CO2 emissions. Where an operator does not have a flow meter calibrated to BS EN 16911-2, the averaged flow measurement from that year's periodic monitoring can be used instead. If the plant does not have calibrated CO2 CEMS, a suitably justified emissions factor can be used."]
["Nitrous oxide emissions (only plants which use ammonia or urea to abate NOx emissions)"]
[null,"Annual mass emissions of nitrous oxide","tonnes N2O",17.9559]
[null,"Description of how annual nitrous oxide mass emission has been calculated\nSee Note 2","CEMS data",null,null,"Note 2: All permits require operators to continuously monitor N2O to EN14181 and flow to BS EN 16911-2, unless otherwise agreed in writing. Operators must therefore use the results from these instruments to calculate their annual N2O emissions. Where an operator does not have a flow meter calibrated to BS EN 16911-2, the averaged flow measurement from periodic monitoring can be used instead. If the plant does not have calibrated N2O CEMS, data from periodic monitoring or a suitably justified emissions factor can be used instead."]
["Total annual carbon dioxide + nitrous oxide emissions. \nSee Note 3. ",null,"tonnes CO2e",196948.0,null,"Note 3: Total annual carbon dioxide and nitrous oxide emissions reported as carbon dioxide equivalent where 1 tonne nitrous oxide is equivalent to 265 tonnes carbon dioxide."]
["Biogenic CO2 emissions (See Note 4)",null,null,null,null,"Note 4: Only plants combusting residual municipal waste, refuse derived fuel or solid recovered fuel need complete this section. "]
[null,"Percentage of total carbon dioxide emissions arising from biogenic waste","%",99554.0]
[null,"Description of how percentage biogenic carbon dioxide emissions have been measured or calculated.\nSee Note 5","Combused waste multiplied by the WRAP data for residual waste of 51.8%",null,null,"Note 5: The results from C14 sampling should be used if this is carried out at the plant (either via an installed sampler or from spot samples).  \nOtherwise, as an approximation (and in lieu of any more accurate metrics which may be developed in future), the measured or estimated biogenic fraction by net calorific value (see Note 6) can be assumed to be the same as the biogenic CO2 fraction of the total CO2 emissions from the plant. "]
["Biogenic fraction of waste feedstock (See Note 4)"]
[null,"Yearly average biogenic percentage of the waste by net calorific value (NCV)",0.518,99554.0]
[null,"Description of how biogenic percentage (by NCV) has been calculated or estimated. \nSee Note 6","Wrap data for residual waste of 51.8%",null,null,"Note 6: If C14 sampling is carried out at the plant, the methodology set out in the embedded document entitled \"Renewable Energy Association Energy Content of Fuels - Description of Method\" embedded below can be used to calculate the biogenic percentage by net calorific value. Otherwise, data from waste sampling or BIOMA software can be used; or if none of these are available, an estimated figure with justification or a figure assumed on the basis of up-to-date industry data can be used. "]
[null,"Yearly average biogenic percentage of the waste by mass",0.518,99554.0]
[null,"Description of how biogenic percentage (by mass) has been calculated or estimated. \nSee Note 7","Wrap data for residual waste of 51.8%"]
[]
[null,"Comments:"]
[null,null,null,null,null,"Note 7: Where available, data from waste sampling should be used; otherwise, an estimated figure with justification can be used, or a figure assumed on the basis of up-to-date industry data. "]

{"sheet":"Residue Quality ","index":11,"n_rows":37,"n_cols":6,"rows_kept":37,"cut":false,"hidden":false,"merged":[[5,0,6,6],[7,0,8,6],[9,0,10,6],[12,0,12,6],[13,0,13,1],[13,2,13,6],[14,2,15,6],[16,2,17,6],[18,2,19,6],[20,2,21,6],[22,2,23,6],[26,0,26,6],[27,2,28,2],[27,3,27,6],[30,0,30,1],[31,0,31,1],[32,0,32,1],[14,0,15,1],[16,0,17,1],[18,0,19,1],[20,0,21,1],[22,0,23,1],[27,0,28,1],[29,0,29,1],[31,3,31,4],[32,3,32,4],[33,0,33,6],[35,0,35,6],[36,0,41,6],[28,3,28,4],[28,5,28,6],[29,3,29,4],[29,5,29,6],[30,3,30,4],[30,5,30,6],[31,5,31,6],[32,5,32,6]]}
[{"$f":"+'Cover Page'!$B$29","v":"Annual Performance Report 2024"},null,null,null,{"$f":"+'Cover Page'!$B$33","v":"Integra SouthWest Energy Recovery Facility"}]
[]
["Residue Quality Monitoring Requirements"]
[]
["Summary of monitoring undertaken and compliance"]
["IBA - Two samples per month are analysed under the ESA protocol\nOne sample per quarter analysed for Permit requirements                                              \n                                                "]
[]
["APCr - One sample per quarter analysed for Permit requirements                                                \n                                                "]
[]
[]
[]
[]
["Commentary on any specific events"]
["Date & Event",null,"Description"]
[]
[]
[]
[]
[]
[]
[]
[]
[]
[]
[]
[]
["Residue Quality Monitoring Results"]
["Parameter (unit) ",null,"Limit*","Normal Operation "]
[null,null,null,"Bottom ash  ",null,"APC Residues"]
["Loss on Ignition (average %)",null,"<5%"]
["Total Organic Carbon (average %)",null,"<3%",1.05]
["No. of Assessments Undertaken",null,"---",4.0,null,4.0]
["No. of Hazardous Results",null,"---",0.0]
["* The permit will specify a limit of either 5% loss on ignition or 3% total organic carbon. If both are measured anyway, please enter the results here, even where the limit does not apply. "]
[]
["Comments :"]
["TOC result is the average of the quarterly values"]

{"sheet":"Water","index":12,"n_rows":24,"n_cols":9,"rows_kept":24,"cut":false,"hidden":false,"merged":[[14,0,15,1],[16,0,17,1],[18,0,19,1],[5,0,6,8],[7,0,8,8],[9,0,10,8],[12,0,12,8],[13,0,13,1],[13,2,13,8],[14,2,15,8],[16,2,17,8],[18,2,19,8],[21,0,21,8],[22,0,22,2],[22,3,22,4],[23,0,23,2],[23,3,23,4],[27,0,27,2],[28,0,28,2],[28,3,28,4],[29,0,29,2],[29,3,29,4],[24,0,24,2],[24,3,24,4],[25,0,25,2],[25,3,25,4],[26,0,26,2],[26,3,26,4],[27,3,27,4]]}
[{"$f":"+'Cover Page'!$B$29","v":"Annual Performance Report 2024"},null,null,null,{"$f":"+'Cover Page'!$B$33","v":"Integra SouthWest Energy Recovery Facility"}]
[]
["Emissions to Water"]
[]
["Summary of monitoring undertaken and compliance"]
["No EPR requirements to monitor discharges to sewer.  Any discharges are regulated by the water authorities"]
[]
[]
[]
[]
[]
[]
["Commentary on any specific events"]
["Date & Event",null,"Description"]
[]
[]
[]
[]
[]
[]
[]
["Emissions to Water / Sewer"]
["Parameter",null,null,"Monitoring Frequency",null,"Limit","Target","Max.","Average"]
["None"]

{"sheet":"Air (periodic)","index":13,"n_rows":40,"n_cols":11,"rows_kept":40,"cut":false,"hidden":false,"merged":[[29,3,29,4],[30,3,30,4],[22,3,22,4],[23,3,23,4],[24,3,24,4],[25,3,25,4],[26,3,26,4],[27,3,27,4],[28,3,28,4],[32,3,32,4],[33,3,33,4],[35,0,35,1],[35,3,35,4],[36,0,36,1],[36,3,36,4],[37,0,37,1],[37,3,37,4],[28,0,28,1],[29,0,29,1],[30,0,30,1],[31,0,31,1],[31,3,31,4],[32,0,32,1],[33,0,33,1],[9,10,11,13],[13,10,14,12],[15,10,16,10],[15,11,16,11],[15,12,16,12],[5,0,6,9],[5,10,8,13],[8,0,8,9],[9,2,10,2],[9,3,10,4],[9,5,9,9],[11,3,11,4],[9,0,10,1],[11,0,11,1],[12,0,12,1],[12,3,12,4],[13,0,13,1],[13,3,13,4],[14,3,14,4],[14,0,14,1],[15,0,15,1],[16,0,16,1],[17,0,17,1],[18,0,18,1],[19,0,19,1],[20,0,20,1],[15,3,15,4],[16,3,16,4],[17,3,17,4],[18,3,18,4],[19,3,19,4],[20,3,20,4],[21,3,21,4],[21,0,21,1],[22,0,22,1],[23,0,23,1],[24,0,24,1],[25,0,25,1],[26,0,26,1],[27,0,27,1],[34,0,34,1],[34,3,34,4],[38,0,38,9],[39,0,40,9]]}
[{"$f":"+'Cover Page'!$B$29","v":"Annual Performance Report 2024"},null,null,null,{"$f":"+'Cover Page'!$B$33","v":"Integra SouthWest Energy Recovery Facility"}]
[]
["Emissions to Air (periodically monitored)"]
[]
["Summary of monitoring undertaken, standards used and compliance",null,null,null,null,null,null,null,null,null,"Notes:"]
["Monitoring undertaken in accordance with the standards listed in the Permit, compliance was maintained for 100% of 2024                                                        ",null,null,null,null,null,null,null,null,null,"Template may require adjustment for any bespoke monitoring requirements of permit - please also check that all default ELV values, reference periods and the stated oxygen reference value match those for your plant, and edit if necessary!"]
[]
[]
["Results of emissions to air that are periodically monitored - oxygen reference 11% "]
["Substance",null,"Ref. Period","Emission Limit Value",null,"Average",null,null,null,null,"User to add additional tables as necessary, depending on whether quarterly or bi-annual reporting is required for the compliance year"]
[null,null,null,null,null,"A1","A2","A3","A4","A5"]
["Hydrogen fluoride",null,"1 hr","1 mg/m3",null,{"$f":"AVERAGE(0.038,0.05)","v":0.044},{"$f":"AVERAGE(0.05,0.04)","v":0.045}]
["Cd and Tl and their compounds",null,"0.5-8hrs","0.02 mg/m3",null,{"$f":"AVERAGE(0.003,0.002)","v":0.0025},{"$f":"AVERAGE(0.0014,0.002)","v":0.0017}]
["Hg and its compounds",null,"0.5-8hrs","0.02 mg/m3",null,{"$f":"AVERAGE(0.004,0.001)","v":0.0025},{"$f":"AVERAGE(0.002,0.001)","v":0.0015}]
["Sb, As, Pb, Cr, Co, Cu, Mn, Ni, V and their compounds",null,"0.5-8hrs","0.3 mg/m3",null,{"$f":"AVERAGE(0.071,0.055)","v":0.063},{"$f":"AVERAGE(0.015,0.01)","v":0.0125}]
["Dioxins & Furans (I-TEQ)",null,"6-8hrs","0.06 ng/m3",null,{"$f":"AVERAGE(0.0019,0.0428)","v":0.02235},{"$f":"AVERAGE(0.0015,0.0015)","v":0.0015}]
["PCBs (WHO-TEQ Humans / Mammals)",null,"6-8hrs","None set ng/m3",null,{"$f":"AVERAGE(0.000111,0.0084)","v":0.0042555},{"$f":"AVERAGE(0.000112,0.0003)","v":0.000206}]
["PCBs (WHO-TEQ Fish)",null,"6-8hrs","None set ng/m3",null,{"$f":"AVERAGE(0.000006,0.0004)","v":0.000203},{"$f":"AVERAGE(0.000006,0.00001)","v":0.000008}]
["PCBs (WHO-TEQ Birds)",null,"6-8hrs","None set ng/m3",null,{"$f":"AVERAGE(0.000393,0.0182)","v":0.0092965},{"$f":"AVERAGE(0.000465,0.0007)","v":0.0005825}]
["Dioxins & Furans (WHO-TEQ Humans / Mammals)",null,"6-8hrs","None set ng/m3",null,{"$f":"AVERAGE(0.0018,0.042)","v":0.0219},{"$f":"AVERAGE(0.0014,0.0015)","v":0.00145}]
["Dioxins & Furans (WHO-TEQ Fish)",null,"6-8hrs","None set ng/m3",null,{"$f":"AVERAGE(0.0018,0.0489)","v":0.02535},{"$f":"AVERAGE(0.0012,0.0017)","v":0.00145}]
["Dioxins & Furans (WHO-TEQ Birds)",null,"6-8hrs","None set ng/m3",null,{"$f":"AVERAGE(0.0048,0.0902)","v":0.0475},{"$f":"AVERAGE(0.0035,0.0029)","v":0.0032}]
["Anthanthrene",null,"6-8hrs","None set µg/m3",null,0.0013,0.001]
["Benzo(a)anthracene",null,"6-8hrs","None set µg/m3",null,0.0013,0.001]
["Benzo(a)pyrene",null,"6-8hrs","None set µg/m3",null,0.0013,0.001]
["Benzo(b)fluoranthene",null,"6-8hrs","None set µg/m3",null,0.0013,0.001]
["Benzo(b)naptho(2,1-d) thiophene",null,"6-8hrs","None set µg/m3",null,0.0013,0.001]
["Benzo(c)phenanthrene",null,"6-8hrs","None set µg/m3",null,0.0013,0.001]
["Benzo(ghi)perylene",null,"6-8hrs","None set µg/m3",null,0.0013,0.001]
["Benzo(k)fluoranthene",null,"6-8hrs","None set µg/m3",null,0.0013,0.001]
["Cholanthrene",null,"6-8hrs","None set µg/m3",null,0.0013,0.001]
["Chrysene",null,"6-8hrs","None set µg/m3",null,0.0013,0.001]
["Cyclopenta(cd)pyrene",null,"6-8hrs","None set µg/m3",null,0.0013,0.001]
["Dibenzo(ai)pyrene",null,"6-8hrs","None set µg/m3",null,0.0013,0.001]
["Dibenzo(ah)anthracene",null,"6-8hrs","None set µg/m3",null,0.0013,0.001]
["Fluoranthene",null,"6-8hrs","None set µg/m3",null,0.0179,0.01]
["Indeno(123-cd) pyrene",null,"6-8hrs","None set µg/m3",null,0.0013,0.001]
["Naphthalene",null,"6-8hrs","None set µg/m3",null,0.2332,0.31]
["Comments :"]
["Results below the LOD are reported as the LOD"]

{"sheet":"Air (CEMS)","index":14,"n_rows":28,"n_cols":14,"rows_kept":28,"cut":false,"hidden":false,"merged":[[11,5,11,6],[11,7,11,8],[11,9,11,10],[11,11,11,12],[12,13,13,15],[14,13,15,13],[14,14,15,14],[14,15,15,15],[13,0,14,0],[26,0,26,12],[28,0,29,12],[5,0,6,12],[7,0,8,12],[10,0,10,12],[11,0,12,0],[11,1,12,1],[11,2,12,2],[11,3,11,4]]}
[{"$f":"+'Cover Page'!$B$29","v":"Annual Performance Report 2024"},null,null,null,null,null,null,null,{"$f":"+'Cover Page'!$B$33","v":"Integra SouthWest Energy Recovery Facility"}]
[]
["Emissions to Air (continuously monitored)"]
[null,null,null,null,null,null,null,null,null,null,null,null,null,"Notes:"]
["Summary of monitoring undertaken, standards used and compliance",null,null,null,null,null,null,null,null,null,null,null,null,"Template may require adjustment for any bespoke monitoring requirements of permit"]
[null,null,null,null,null,null,null,null,null,null,null,null,null,"Please check that all default ELV values match those for your plant and edit if necessary!"]
[null,null,null,null,null,null,null,null,null,null,null,null,null,"Report to 1 decimal place"]
[]
[]
[]
["Results of emissions to air that are continuously monitored (maximum and average values for each line) - oxygen reference 11%"]
["Substance","Reference Period","Emission Limit Value","A1",null,"A2",null,"A3",null,"A4",null,"A5"]
[null,null,null,"Max.","Avg.","Max.","Avg.","Max.","Avg.","Max.","Avg.","Max.","Avg."]
["Oxides of nitrogen","Daily mean","180 mg/m3 ",{"$f":"NOx!O19","v":169.71},{"$f":"NOx!N19","v":140.6016667},{"$f":"NOx!O34","v":175.61},{"$f":"NOx!N34","v":145.3333333}]
[null,"½ hourly mean","400 mg/m3 ",{"$f":"NOx!M19","v":318.65},{"$f":"NOx!L19","v":140.4358333},{"$f":"NOx!M34","v":371.09},{"$f":"NOx!L34","v":145.2758333}]
["Particulates","Daily mean","5 mg/m3",{"$f":"Particulates!O19","v":2.37},{"$f":"Particulates!N19","v":1.250833333},{"$f":"Particulates!O34","v":2.46},{"$f":"Particulates!N34","v":0.9933333333}]
[null,"½ hourly mean","30 mg/m3 ",{"$f":"Particulates!M19","v":5.79},{"$f":"Particulates!L19","v":1.250833333},{"$f":"Particulates!M34","v":5.89},{"$f":"Particulates!L34","v":0.9958333333}]
["Total Organic Carbon ","Daily mean","10 mg/m3 ",{"$f":"TOC!O19","v":4.58},{"$f":"TOC!N19","v":1.311666667},{"$f":"TOC!O34","v":5.3},{"$f":"TOC!N34","v":1.271666667}]
[null,"½ hourly mean","20 mg/m3 ",{"$f":"TOC!M19","v":11.88},{"$f":"TOC!L19","v":1.319166667},{"$f":"TOC!M34","v":16.33},{"$f":"TOC!L34","v":1.273333333}]
["Hydrogen chloride ","Daily mean","8 mg/m3 ",{"$f":"HCl!O19","v":6.19},{"$f":"HCl!N19","v":3.6325},{"$f":"HCl!O34","v":6.04},{"$f":"HCl!N34","v":3.910833333}]
[null,"½ hourly mean","60 mg/m3 ",{"$f":"HCl!M19","v":29.34},{"$f":"HCl!L19","v":3.626666667},{"$f":"HCl!M34","v":87.07},{"$f":"HCl!L34","v":3.911666667}]
["Sulphur dioxide","Daily mean","40 mg/m3 ",{"$f":"'SO2'!O19","v":26.77},{"$f":"'SO2'!N19","v":9.9075},{"$f":"'SO2'!O34","v":28.05},{"$f":"'SO2'!N34","v":11.74666667}]
[null,"½ hourly mean","200 mg/m3 ",{"$f":"'SO2'!M19","v":120.25},{"$f":"'SO2'!L19","v":9.938333333},{"$f":"'SO2'!M34","v":121.37},{"$f":"'SO2'!L34","v":11.8025}]
["Carbon monoxide ","Daily mean","50 mg/m3 ",{"$f":"'CO 95% 10 min'!Q22","v":26.69},{"$f":"'CO 95% 10 min'!P22","v":13.31916667},{"$f":"'CO 95% 10 min'!Q37","v":39.6},{"$f":"'CO 95% 10 min'!P37","v":14.2125}]
[null,"95%ile 10-min avg *","150 mg/m3 *",26.69,13.319166666666666,39.6,14.212499999999999]
[" Ammonia","Daily mean","15 mg/m3 ",{"$f":"'NH3'!O19","v":12.52},{"$f":"'NH3'!N19","v":6.370833333},{"$f":"'NH3'!O34","v":13.51},5.335833333333333]
["* = delete as appropriate, depending on whether your plant has half-hourly or 10-min CO ELVs\n"]
["Comments :"]

{"sheet":"HCl","index":15,"n_rows":79,"n_cols":17,"rows_kept":79,"cut":false,"hidden":false,"merged":[[6,9,18,9],[21,9,33,9],[36,9,48,9],[47,0,47,6],[48,0,51,6],[51,9,63,9],[66,9,78,9],[3,16,7,18],[4,1,4,3],[4,4,4,6],[4,9,4,14],[9,16,11,18],[12,16,15,18],[18,4,18,6]]}
[{"$f":"+'Cover Page'!$B$29","v":"Annual Performance Report 2024"},null,null,null,{"$f":"+'Cover Page'!$B$33","v":"Integra SouthWest Energy Recovery Facility"}]
[]
["Monitoring of Hydrogen Chloride emissions",null,null,"Whole Installation",null,null,"See  Notes in Cell Q3",null,null,{"$f":"+A3","v":"Monitoring of Hydrogen Chloride emissions"},null,null,null,"Per Combustion Line",null,null,"Notes:"]
[null,null,null,null,null,null,null,null,null,null,null,null,null,null,null,null,"User to add logic to complete Whole installation, Table A5:G18. From the data in Per Combustion Line, Table J6:O79, subject to No. of lines installed"]
[{"$f":"+'Cover Page'!C39","v":2024},"1/2 Hourly Reference Periods",null,null,"Daily Reference Periods"]
["mg/Nm3","1/2 hourly HCl ELV","Monthly mean of half-hourly averages","Highest half- hourly average","Daily HCl ELV","Monthly mean of  daily averages","Highest daily average",null,null,{"$f":"+A5","v":2024},"mg/Nm3","Monthly mean of half-hourly averages","Highest half- hourly average","Monthly mean of  daily averages","Highest daily average"]
["Jan",60.0,{"$f":"(L7+L22)/2","v":4.45},58.205,8.0,{"$f":"(N7+N22)/2","v":4.45},6.115,null,null,"A1","Jan",4.34,29.34,4.34,6.19]
["Feb",60.0,3.7,{"$f":"(M8+M23)/2","v":20.655},8.0,{"$f":"(N8+N23)/2","v":3.71},5.22,null,null,null,"Feb",3.4,16.51,3.42,4.72]
["Mar",60.0,4.255,23.955,8.0,{"$f":"(N9+N24)/2","v":4.255},5.56,null,null,null,"Mar",4.56,18.93,4.56,5.49,null,"Whole Installation table A5:G18:"]
["Apr",60.0,3.665,17.31,8.0,{"$f":"(N10+N25)/2","v":3.665},5.055,null,null,null,"Apr",3.67,15.07,3.69,4.79,null,"Mean: for 1/2 hourly and daily periods calculate mean of values across all operational combustion lines for the month"]
["May",60.0,4.035,26.38,8.0,{"$f":"(N11+N26)/2","v":4.03},5.21,null,null,null,"May",3.47,21.52,3.46,4.64]
["Jun",60.0,4.385,23.795,8.0,{"$f":"(N12+N27)/2","v":4.385},5.295,null,null,null,"Jun",4.31,13.78,4.31,5.45]
["Jul",60.0,4.005,31.18,8.0,{"$f":"(N13+N28)/2","v":4.02},5.045,null,null,null,"Jul",3.91,16.12,3.92,4.9,null,"Maximum: for 1/2 hourly and daily periods use the highest value across all operational combustion lines for the month"]
["Aug",60.0,3.8,31.915,8.0,{"$f":"(N14+N29)/2","v":3.805},4.54,null,null,null,"Aug",3.63,20.64,3.64,4.33]
["Sep",60.0,3.795,20.74,8.0,{"$f":"(N15+N30)/2","v":3.795},4.785,null,null,null,"Sep",3.86,19.97,3.86,4.67]
["Oct",60.0,3.3899999999999997,18.005,8.0,{"$f":"(N16+N31)/2","v":3.39},4.395,null,null,null,"Oct",3.27,19.72,3.27,4.19]
["Nov",60.0,3.3899999999999997,22.205,8.0,{"$f":"(N17+N32)/2","v":3.385},5.25,null,null,null,"Nov",3.11,10.29,3.11,4.75]
["Dec",60.0,2.36,19.415,8.0,{"$f":"(N18+N33)/2","v":2.37},4,null,null,null,"Dec",1.99,12.46,2.01,3.93]
[null,null,null,null,null,null,null,null,null,null,"Annual",{"$f":"AVERAGE(L7:L18)","v":3.626666667},{"$f":"MAX(M7:M18)","v":29.34},{"$f":"AVERAGE(N7:N18)","v":3.6325},{"$f":"MAX(O7:O18)","v":6.19}]
[]
[null,null,null,null,null,null,null,null,null,{"$f":"+A5","v":2024},"mg/Nm3","Monthly mean of half-hourly averages","Highest half- hourly average","Monthly mean of  daily averages","Highest daily average"]
[null,null,null,null,null,null,null,null,null,"A2","Jan",4.56,87.07,4.56,6.04]
[null,null,null,null,null,null,null,null,null,null,"Feb",4.0,24.8,4.0,5.72]
[null,null,null,null,null,null,null,null,null,null,"Mar",3.95,28.98,3.95,5.63]
[null,null,null,null,null,null,null,null,null,null,"Apr",3.66,19.55,3.64,5.32]
[null,null,null,null,null,null,null,null,null,null,"May",4.6,31.24,4.6,5.78]
[null,null,null,null,null,null,null,null,null,null,"Jun",4.46,33.81,4.46,5.14]
[null,null,null,null,null,null,null,null,null,null,"Jul",4.1,46.24,4.12,5.19]
[null,null,null,null,null,null,null,null,null,null,"Aug",3.97,43.19,3.97,4.75]
[null,null,null,null,null,null,null,null,null,null,"Sep",3.73,21.51,3.73,4.9]
[null,null,null,null,null,null,null,null,null,null,"Oct",3.51,16.29,3.51,4.6]
[null,null,null,null,null,null,null,null,null,null,"Nov",3.67,34.12,3.66,5.75]
[null,null,null,null,null,null,null,null,null,null,"Dec",2.73,26.37,2.73,4.07]
[null,null,null,null,null,null,null,null,null,null,"Annual",{"$f":"AVERAGE(L22:L33)","v":3.911666667},{"$f":"MAX(M22:M33)","v":87.07},{"$f":"AVERAGE(N22:N33)","v":3.910833333},{"$f":"MAX(O22:O33)","v":6.04}]
[]
[null,null,null,null,null,null,null,null,null,{"$f":"+A5","v":2024},"mg/Nm3","Monthly mean of half-hourly averages","Highest half- hourly average","Monthly mean of  daily averages","Highest daily average"]
[null,null,null,null,null,null,null,null,null,"A3","Jan"]
[null,null,null,null,null,null,null,null,null,null,"Feb"]
[null,null,null,null,null,null,null,null,null,null,"Mar"]
[null,null,null,null,null,null,null,null,null,null,"Apr"]
[null,null,null,null,null,null,null,null,null,null,"May"]
[null,null,null,null,null,null,null,null,null,null,"Jun"]
[null,null,null,null,null,null,null,null,null,null,"Jul"]
[null,null,null,null,null,null,null,null,null,null,"Aug"]
[null,null,null,null,null,null,null,null,null,null,"Sep"]
[null,null,null,null,null,null,null,null,null,null,"Oct"]
[null,null,null,null,null,null,null,null,null,null,"Nov"]
["Comments :",null,null,null,null,null,null,null,null,null,"Dec"]
[null,null,null,null,null,null,null,null,null,null,"Annual",{"$f":"AVERAGE(L37:L48)","v":"#DIV/0!"},{"$f":"MAX(M37:M48)","v":0},{"$f":"AVERAGE(N37:N48)","v":"#DIV/0!"},{"$f":"MAX(O37:O48)","v":0}]
[]
[null,null,null,null,null,null,null,null,null,{"$f":"+A5","v":2024},"mg/Nm3","Monthly mean of half-hourly averages","Highest half- hourly average","Monthly mean of  daily averages","Highest daily average"]
[null,null,null,null,null,null,null,null,null,"A4","Jan"]
[null,null,null,null,null,null,null,null,null,null,"Feb"]
[null,null,null,null,null,null,null,null,null,null,"Mar"]
[null,null,null,null,null,null,null,null,null,null,"Apr"]
[null,null,null,null,null,null,null,null,null,null,"May"]
[null,null,null,null,null,null,null,null,null,null,"Jun"]
[null,null,null,null,null,null,null,null,null,null,"Jul"]
[null,null,null,null,null,null,null,null,null,null,"Aug"]
[null,null,null,null,null,null,null,null,null,null,"Sep"]
[null,null,null,null,null,null,null,null,null,null,"Oct"]
[null,null,null,null,null,null,null,null,null,null,"Nov"]
[null,null,null,null,null,null,null,null,null,null,"Dec"]
[null,null,null,null,null,null,null,null,null,null,"Annual",{"$f":"AVERAGE(L52:L63)","v":"#DIV/0!"},{"$f":"MAX(M52:M63)","v":0},{"$f":"AVERAGE(N52:N63)","v":"#DIV/0!"},{"$f":"MAX(O52:O63)","v":0}]
[]
[null,null,null,null,null,null,null,null,null,{"$f":"+A5","v":2024},"mg/Nm3","Monthly mean of half-hourly averages","Highest half- hourly average","Monthly mean of  daily averages","Highest daily average"]
[null,null,null,null,null,null,null,null,null,"A5","Jan"]
[null,null,null,null,null,null,null,null,null,null,"Feb"]
[null,null,null,null,null,null,null,null,null,null,"Mar"]
[null,null,null,null,null,null,null,null,null,null,"Apr"]
[null,null,null,null,null,null,null,null,null,null,"May"]
[null,null,null,null,null,null,null,null,null,null,"Jun"]
[null,null,null,null,null,null,null,null,null,null,"Jul"]
[null,null,null,null,null,null,null,null,null,null,"Aug"]
[null,null,null,null,null,null,null,null,null,null,"Sep"]
[null,null,null,null,null,null,null,null,null,null,"Oct"]
[null,null,null,null,null,null,null,null,null,null,"Nov"]
[null,null,null,null,null,null,null,null,null,null,"Dec"]
[null,null,null,null,null,null,null,null,null,null,"Annual",{"$f":"AVERAGE(L67:L78)","v":"#DIV/0!"},{"$f":"MAX(M67:M78)","v":0},{"$f":"AVERAGE(N67:N78)","v":"#DIV/0!"},{"$f":"MAX(O67:O78)","v":0}]

{"sheet":"SO2","index":16,"n_rows":79,"n_cols":17,"rows_kept":79,"cut":false,"hidden":false,"merged":[[6,9,18,9],[21,9,33,9],[36,9,48,9],[47,0,47,6],[48,0,51,6],[51,9,63,9],[66,9,78,9],[3,16,7,18],[4,1,4,3],[4,4,4,6],[4,9,4,14],[9,16,11,18],[12,16,15,18],[18,4,18,6]]}
[{"$f":"+'Cover Page'!$B$29","v":"Annual Performance Report 2024"},null,null,null,{"$f":"+'Cover Page'!$B$33","v":"Integra SouthWest Energy Recovery Facility"}]
[]
["Monitoring of Sulphur dioxide emissions",null,null,"Whole Installation",null,null,"See  Notes in Cell Q3",null,null,{"$f":"+A3","v":"Monitoring of Sulphur dioxide emissions"},null,null,null,"Per Combustion Line",null,null,"Notes:"]
[null,null,null,null,null,null,null,null,null,null,null,null,null,null,null,null,"User to add logic to complete Whole installation, Table A5:G18. From the data in Per Combustion Line, Table J6:O79, subject to No. of lines installed"]
[{"$f":"+'Cover Page'!C39","v":2024},"1/2 Hourly Reference Periods",null,null,"Daily Reference Periods"]
["mg/Nm3","1/2 hourly SO2 ELV","Monthly mean of half-hourly averages","Highest half- hourly average","Daily SO2 ELV","Monthly mean of  daily averages","Highest daily average",null,null,{"$f":"+A5","v":2024},"mg/Nm3","Monthly mean of half-hourly averages","Highest half- hourly average","Monthly mean of  daily averages","Highest daily average"]
["Jan",200.0,{"$f":"(L7+L22)/2","v":9.845},96.385,40.0,{"$f":"(N7+N22)/2","v":9.845},17.035,null,null,"A1","Jan",8.15,104.5,8.14,17.14]
["Feb",200.0,{"$f":"(L8+L23)/2","v":10.275},87.11,40.0,{"$f":"(N8+N23)/2","v":10.335},16.875,null,null,null,"Feb",12.6,101.53,12.72,21.17]
["Mar",200.0,{"$f":"(L9+L24)/2","v":14.07},84.945,40.0,{"$f":"(N9+N24)/2","v":14.055},22.52,null,null,null,"Mar",15.55,77.66,15.54,21.48,null,"Whole Installation table A5:G18:"]
["Apr",200.0,{"$f":"(L10+L25)/2","v":7.735},66.495,40.0,{"$f":"(N10+N25)/2","v":7.39},17.275,null,null,null,"Apr",7.77,70.24,7.81,13.03,null,"Mean: for 1/2 hourly and daily periods calculate mean of values across all operational combustion lines for the month"]
["May",200.0,{"$f":"(L11+L26)/2","v":16.615},96.615,40.0,{"$f":"(N11+N26)/2","v":16.62},27.41,null,null,null,"May",16.28,94.36,16.29,26.77]
["Jun",200.0,{"$f":"(L12+L27)/2","v":12.685},85.95,40.0,{"$f":"(N12+N27)/2","v":12.675},19.225,null,null,null,"Jun",12.09,91.96,12.08,17.66]
["Jul",200.0,{"$f":"(L13+L28)/2","v":11.81},104.52,40.0,{"$f":"(N13+N28)/2","v":11.85},20.68,null,null,null,"Jul",9.92,120.25,9.91,20.41,null,"Maximum: for 1/2 hourly and daily periods use the highest value across all operational combustion lines for the month"]
["Aug",200.0,{"$f":"(L14+L29)/2","v":7.795},108.345,40.0,{"$f":"(N14+N29)/2","v":7.785},18.78,null,null,null,"Aug",5.86,101.75,5.85,18.94]
["Sep",200.0,{"$f":"(L15+L30)/2","v":8.255},109.885,40.0,{"$f":"(N15+N30)/2","v":8.17},16.955,null,null,null,"Sep",7.01,98.4,6.84,20.12]
["Oct",200.0,{"$f":"(L16+L31)/2","v":8.645},105.92,40.0,{"$f":"(N16+N31)/2","v":8.675},17.405,null,null,null,"Oct",6.35,105.08,6.42,12.09]
["Nov",200.0,{"$f":"(L17+L32)/2","v":7.515},103.285,40.0,{"$f":"(N17+N32)/2","v":7.32},17.925,null,null,null,"Nov",5.05,112.03,4.67,17.44]
["Dec",200.0,{"$f":"(L18+L33)/2","v":15.2},82.885,40.0,{"$f":"(N18+N33)/2","v":15.205},23.82,null,null,null,"Dec",12.63,79.74,12.62,20.24]
[null,null,null,null,null,null,null,null,null,null,"Annual",{"$f":"AVERAGE(L7:L18)","v":9.938333333},{"$f":"MAX(M7:M18)","v":120.25},{"$f":"AVERAGE(N7:N18)","v":9.9075},{"$f":"MAX(O7:O18)","v":26.77}]
[]
[null,null,null,null,null,null,null,null,null,{"$f":"+A5","v":2024},"mg/Nm3","Monthly mean of half-hourly averages","Highest half- hourly average","Monthly mean of  daily averages","Highest daily average"]
[null,null,null,null,null,null,null,null,null,"A2","Jan",11.54,88.27,11.55,16.93]
[null,null,null,null,null,null,null,null,null,null,"Feb",7.95,72.69,7.95,12.58]
[null,null,null,null,null,null,null,null,null,null,"Mar",12.59,92.23,12.57,23.56]
[null,null,null,null,null,null,null,null,null,null,"Apr",7.7,62.75,6.97,21.52]
[null,null,null,null,null,null,null,null,null,null,"May",16.95,98.87,16.95,28.05]
[null,null,null,null,null,null,null,null,null,null,"Jun",13.28,79.94,13.27,20.79]
[null,null,null,null,null,null,null,null,null,null,"Jul",13.7,88.79,13.79,20.95]
[null,null,null,null,null,null,null,null,null,null,"Aug",9.73,114.94,9.72,18.62]
[null,null,null,null,null,null,null,null,null,null,"Sep",9.5,121.37,9.5,13.79]
[null,null,null,null,null,null,null,null,null,null,"Oct",10.94,106.76,10.93,22.72]
[null,null,null,null,null,null,null,null,null,null,"Nov",9.98,94.54,9.97,18.41]
[null,null,null,null,null,null,null,null,null,null,"Dec",17.77,86.03,17.79,27.4]
[null,null,null,null,null,null,null,null,null,null,"Annual",{"$f":"AVERAGE(L22:L33)","v":11.8025},{"$f":"MAX(M22:M33)","v":121.37},{"$f":"AVERAGE(N22:N33)","v":11.74666667},{"$f":"MAX(O22:O33)","v":28.05}]
[]
[null,null,null,null,null,null,null,null,null,{"$f":"+A5","v":2024},"mg/Nm3","Monthly mean of half-hourly averages","Highest half- hourly average","Monthly mean of  daily averages","Highest daily average"]
[null,null,null,null,null,null,null,null,null,"A3","Jan"]
[null,null,null,null,null,null,null,null,null,null,"Feb"]
[null,null,null,null,null,null,null,null,null,null,"Mar"]
[null,null,null,null,null,null,null,null,null,null,"Apr"]
[null,null,null,null,null,null,null,null,null,null,"May"]
[null,null,null,null,null,null,null,null,null,null,"Jun"]
[null,null,null,null,null,null,null,null,null,null,"Jul"]
[null,null,null,null,null,null,null,null,null,null,"Aug"]
[null,null,null,null,null,null,null,null,null,null,"Sep"]
[null,null,null,null,null,null,null,null,null,null,"Oct"]
[null,null,null,null,null,null,null,null,null,null,"Nov"]
["Comments :",null,null,null,null,null,null,null,null,null,"Dec"]
[null,null,null,null,null,null,null,null,null,null,"Annual",{"$f":"AVERAGE(L37:L48)","v":"#DIV/0!"},{"$f":"MAX(M37:M48)","v":0},{"$f":"AVERAGE(N37:N48)","v":"#DIV/0!"},{"$f":"MAX(O37:O48)","v":0}]
[]
[null,null,null,null,null,null,null,null,null,{"$f":"+A5","v":2024},"mg/Nm3","Monthly mean of half-hourly averages","Highest half- hourly average","Monthly mean of  daily averages","Highest daily average"]
[null,null,null,null,null,null,null,null,null,"A4","Jan"]
[null,null,null,null,null,null,null,null,null,null,"Feb"]
[null,null,null,null,null,null,null,null,null,null,"Mar"]
[null,null,null,null,null,null,null,null,null,null,"Apr"]
[null,null,null,null,null,null,null,null,null,null,"May"]
[null,null,null,null,null,null,null,null,null,null,"Jun"]
[null,null,null,null,null,null,null,null,null,null,"Jul"]
[null,null,null,null,null,null,null,null,null,null,"Aug"]
[null,null,null,null,null,null,null,null,null,null,"Sep"]
[null,null,null,null,null,null,null,null,null,null,"Oct"]
[null,null,null,null,null,null,null,null,null,null,"Nov"]
[null,null,null,null,null,null,null,null,null,null,"Dec"]
[null,null,null,null,null,null,null,null,null,null,"Annual",{"$f":"AVERAGE(L52:L63)","v":"#DIV/0!"},{"$f":"MAX(M52:M63)","v":0},{"$f":"AVERAGE(N52:N63)","v":"#DIV/0!"},{"$f":"MAX(O52:O63)","v":0}]
[]
[null,null,null,null,null,null,null,null,null,{"$f":"+A5","v":2024},"mg/Nm3","Monthly mean of half-hourly averages","Highest half- hourly average","Monthly mean of  daily averages","Highest daily average"]
[null,null,null,null,null,null,null,null,null,"A5","Jan"]
[null,null,null,null,null,null,null,null,null,null,"Feb"]
[null,null,null,null,null,null,null,null,null,null,"Mar"]
[null,null,null,null,null,null,null,null,null,null,"Apr"]
[null,null,null,null,null,null,null,null,null,null,"May"]
[null,null,null,null,null,null,null,null,null,null,"Jun"]
[null,null,null,null,null,null,null,null,null,null,"Jul"]
[null,null,null,null,null,null,null,null,null,null,"Aug"]
[null,null,null,null,null,null,null,null,null,null,"Sep"]
[null,null,null,null,null,null,null,null,null,null,"Oct"]
[null,null,null,null,null,null,null,null,null,null,"Nov"]
[null,null,null,null,null,null,null,null,null,null,"Dec"]
[null,null,null,null,null,null,null,null,null,null,"Annual",{"$f":"AVERAGE(L67:L78)","v":"#DIV/0!"},{"$f":"MAX(M67:M78)","v":0},{"$f":"AVERAGE(N67:N78)","v":"#DIV/0!"},{"$f":"MAX(O67:O78)","v":0}]

{"sheet":"NOx","index":17,"n_rows":79,"n_cols":17,"rows_kept":79,"cut":false,"hidden":false,"merged":[[6,9,18,9],[21,9,33,9],[36,9,48,9],[47,0,47,6],[48,0,51,6],[51,9,63,9],[66,9,78,9],[3,16,7,18],[4,1,4,3],[4,4,4,6],[4,9,4,14],[9,16,11,18],[12,16,15,18],[18,4,18,6]]}
[{"$f":"+'Cover Page'!$B$29","v":"Annual Performance Report 2024"},null,null,null,{"$f":"+'Cover Page'!$B$33","v":"Integra SouthWest Energy Recovery Facility"}]
[]
["Monitoring of Oxides of Nitrogen emissions",null,null,"Whole Installation",null,null,"See  Notes in Cell Q3",null,null,{"$f":"+A3","v":"Monitoring of Oxides of Nitrogen emissions"},null,null,null,"Per Combustion Line",null,null,"Notes:"]
[null,null,null,null,null,null,null,null,null,null,null,null,null,null,null,null,"User to add logic to complete Whole installation, Table A5:G18. From the data in Per Combustion Line, Table J6:O79, subject to No. of lines installed"]
[{"$f":"+'Cover Page'!C39","v":2024},"1/2 Hourly Reference Periods",null,null,"Daily Reference Periods"]
["mg/Nm3","1/2 hourly NOx ELV","Monthly mean of half-hourly averages","Highest half- hourly average","Daily NOx ELV","Monthly mean of  daily averages","Highest daily average",null,null,{"$f":"+A5","v":2024},"mg/Nm3","Monthly mean of half-hourly averages","Highest half- hourly average","Monthly mean of  daily averages","Highest daily average"]
["Jan",400.0,140.255,{"$f":"(M7+M22)/2","v":299.5},180.0,{"$f":"(N7+N22)/2","v":140.225},161.84,null,null,"A1","Jan",123.82,261.25,123.74,155.34]
["Feb",400.0,140.275,270.79,180.0,141.25,{"$f":"(O8+O23)/2","v":168.04},null,null,null,"Feb",138.75,253.3,140.73,169.71]
["Mar",400.0,149.18,288.835,180.0,149.225,168.855,null,null,null,"Mar",152.08,318.65,152.14,167.34,null,"Whole Installation table A5:G18:"]
["Apr",400.0,150.325,268.47,180.0,150.29500000000002,161.885,null,null,null,"Apr",146.94,285.42,146.99,156.87,null,"Mean: for 1/2 hourly and daily periods calculate mean of values across all operational combustion lines for the month"]
["May",400.0,145.62,304.7,180.0,145.65,166.995,null,null,null,"May",133.6,293.23,133.65,158.38]
["Jun",400.0,142.82999999999998,202.835,180.0,142.825,156.505,null,null,null,"Jun",136.65,193.09,136.63,147.15]
["Jul",400.0,142.715,289.82,180.0,142.855,162.425,null,null,null,"Jul",142.19,208.55,142.32,163.63,null,"Maximum: for 1/2 hourly and daily periods use the highest value across all operational combustion lines for the month"]
["Aug",400.0,147.72,322.835,180.0,147.615,168.52,null,null,null,"Aug",146.31,294.52,146.02,161.84]
["Sep",400.0,145.85,237.25,180.0,145.97,161.16,null,null,null,"Sep",147.64,204.88,147.87,161.88]
["Oct",400.0,143.08,250.31,180.0,143.425,161.17,null,null,null,"Oct",145.36,232.31,145.53,158.98]
["Nov",400.0,137.155,242.94,180.0,137.0,153.48,null,null,null,"Nov",143.22,208.06,142.95,157.88]
["Dec",400.0,129.265,242.825,180.0,129.275,156.635,null,null,null,"Dec",128.67,202.51,128.65,144.66]
[null,null,null,null,null,null,null,null,null,null,"Annual",{"$f":"AVERAGE(L7:L18)","v":140.4358333},{"$f":"MAX(M7:M18)","v":318.65},{"$f":"AVERAGE(N7:N18)","v":140.6016667},{"$f":"MAX(O7:O18)","v":169.71}]
[]
[null,null,null,null,null,null,null,null,null,{"$f":"+A5","v":2024},"mg/Nm3","Monthly mean of half-hourly averages","Highest half- hourly average","Monthly mean of  daily averages","Highest daily average"]
[null,null,null,null,null,null,null,null,null,"A2","Jan",156.69,337.75,156.71,168.34]
[null,null,null,null,null,null,null,null,null,null,"Feb",141.8,288.28,141.77,166.37]
[null,null,null,null,null,null,null,null,null,null,"Mar",146.28,259.02,146.31,170.37]
[null,null,null,null,null,null,null,null,null,null,"Apr",153.71,251.52,153.6,166.9]
[null,null,null,null,null,null,null,null,null,null,"May",157.64,316.17,157.65,175.61]
[null,null,null,null,null,null,null,null,null,null,"Jun",149.01,212.58,149.02,165.86]
[null,null,null,null,null,null,null,null,null,null,"Jul",143.24,371.09,143.39,161.22]
[null,null,null,null,null,null,null,null,null,null,"Aug",149.13,351.15,149.21,175.2]
[null,null,null,null,null,null,null,null,null,null,"Sep",144.06,269.62,144.07,160.44]
[null,null,null,null,null,null,null,null,null,null,"Oct",140.8,268.31,141.32,163.36]
[null,null,null,null,null,null,null,null,null,null,"Nov",131.09,277.82,131.05,149.08]
[null,null,null,null,null,null,null,null,null,null,"Dec",129.86,283.14,129.9,168.61]
[null,null,null,null,null,null,null,null,null,null,"Annual",{"$f":"AVERAGE(L22:L33)","v":145.2758333},{"$f":"MAX(M22:M33)","v":371.09},{"$f":"AVERAGE(N22:N33)","v":145.3333333},{"$f":"MAX(O22:O33)","v":175.61}]
[]
[null,null,null,null,null,null,null,null,null,{"$f":"+A5","v":2024},"mg/Nm3","Monthly mean of half-hourly averages","Highest half- hourly average","Monthly mean of  daily averages","Highest daily average"]
[null,null,null,null,null,null,null,null,null,"A3","Jan"]
[null,null,null,null,null,null,null,null,null,null,"Feb"]
[null,null,null,null,null,null,null,null,null,null,"Mar"]
[null,null,null,null,null,null,null,null,null,null,"Apr"]
[null,null,null,null,null,null,null,null,null,null,"May"]
[null,null,null,null,null,null,null,null,null,null,"Jun"]
[null,null,null,null,null,null,null,null,null,null,"Jul"]
[null,null,null,null,null,null,null,null,null,null,"Aug"]
[null,null,null,null,null,null,null,null,null,null,"Sep"]
[null,null,null,null,null,null,null,null,null,null,"Oct"]
[null,null,null,null,null,null,null,null,null,null,"Nov"]
["Comments :",null,null,null,null,null,null,null,null,null,"Dec"]
[null,null,null,null,null,null,null,null,null,null,"Annual",{"$f":"AVERAGE(L37:L48)","v":"#DIV/0!"},{"$f":"MAX(M37:M48)","v":0},{"$f":"AVERAGE(N37:N48)","v":"#DIV/0!"},{"$f":"MAX(O37:O48)","v":0}]
[]
[null,null,null,null,null,null,null,null,null,{"$f":"+A5","v":2024},"mg/Nm3","Monthly mean of half-hourly averages","Highest half- hourly average","Monthly mean of  daily averages","Highest daily average"]
[null,null,null,null,null,null,null,null,null,"A4","Jan"]
[null,null,null,null,null,null,null,null,null,null,"Feb"]
[null,null,null,null,null,null,null,null,null,null,"Mar"]
[null,null,null,null,null,null,null,null,null,null,"Apr"]
[null,null,null,null,null,null,null,null,null,null,"May"]
[null,null,null,null,null,null,null,null,null,null,"Jun"]
[null,null,null,null,null,null,null,null,null,null,"Jul"]
[null,null,null,null,null,null,null,null,null,null,"Aug"]
[null,null,null,null,null,null,null,null,null,null,"Sep"]
[null,null,null,null,null,null,null,null,null,null,"Oct"]
[null,null,null,null,null,null,null,null,null,null,"Nov"]
[null,null,null,null,null,null,null,null,null,null,"Dec"]
[null,null,null,null,null,null,null,null,null,null,"Annual",{"$f":"AVERAGE(L52:L63)","v":"#DIV/0!"},{"$f":"MAX(M52:M63)","v":0},{"$f":"AVERAGE(N52:N63)","v":"#DIV/0!"},{"$f":"MAX(O52:O63)","v":0}]
[]
[null,null,null,null,null,null,null,null,null,{"$f":"+A5","v":2024},"mg/Nm3","Monthly mean of half-hourly averages","Highest half- hourly average","Monthly mean of  daily averages","Highest daily average"]
[null,null,null,null,null,null,null,null,null,"A5","Jan"]
[null,null,null,null,null,null,null,null,null,null,"Feb"]
[null,null,null,null,null,null,null,null,null,null,"Mar"]
[null,null,null,null,null,null,null,null,null,null,"Apr"]
[null,null,null,null,null,null,null,null,null,null,"May"]
[null,null,null,null,null,null,null,null,null,null,"Jun"]
[null,null,null,null,null,null,null,null,null,null,"Jul"]
[null,null,null,null,null,null,null,null,null,null,"Aug"]
[null,null,null,null,null,null,null,null,null,null,"Sep"]
[null,null,null,null,null,null,null,null,null,null,"Oct"]
[null,null,null,null,null,null,null,null,null,null,"Nov"]
[null,null,null,null,null,null,null,null,null,null,"Dec"]
[null,null,null,null,null,null,null,null,null,null,"Annual",{"$f":"AVERAGE(L67:L78)","v":"#DIV/0!"},{"$f":"MAX(M67:M78)","v":0},{"$f":"AVERAGE(N67:N78)","v":"#DIV/0!"},{"$f":"MAX(O67:O78)","v":0}]

{"sheet":"TOC","index":18,"n_rows":79,"n_cols":17,"rows_kept":79,"cut":false,"hidden":false,"merged":[[21,9,33,9],[36,9,48,9],[47,0,47,6],[48,0,51,6],[51,9,63,9],[66,9,78,9],[3,16,7,18],[4,1,4,3],[4,4,4,6],[4,9,4,14],[6,9,18,9],[9,16,11,18],[12,16,15,18]]}
[{"$f":"+'Cover Page'!$B$29","v":"Annual Performance Report 2024"},null,null,null,{"$f":"+'Cover Page'!$B$33","v":"Integra SouthWest Energy Recovery Facility"}]
[]
["Monitoring of Total organic carbon emissions",null,null,"Whole Installation",null,null,"See  Notes in Cell Q3",null,null,{"$f":"+A3","v":"Monitoring of Total organic carbon emissions"},null,null,null,"Per Combustion Line",null,null,"Notes:"]
[null,null,null,null,null,null,null,null,null,null,null,null,null,null,null,null,"User to add logic to complete Whole installation, Table A5:G18. From the data in Per Combustion Line, Table J6:O79, subject to No. of lines installed"]
[{"$f":"+'Cover Page'!C39","v":2024},"1/2 Hourly Reference Periods",null,null,"Daily Reference Periods"]
["mg/Nm3","1/2 hourly TOC ELV","Monthly mean of half-hourly averages","Highest half- hourly average","Daily TOC ELV","Monthly mean of  daily averages","Highest daily average",null,null,{"$f":"+A5","v":2024},"mg/Nm3","Monthly mean of half-hourly averages","Highest half- hourly average","Monthly mean of  daily averages","Highest daily average"]
["Jan",20.0,{"$f":"(L7+L22)/2","v":1.51},8.3,10.0,{"$f":"(N7+N22)/2","v":1.51},4.015,null,null,"A1","Jan",2.21,9.72,2.21,4.58]
["Feb",20.0,{"$f":"(L8+L23)/2","v":0.98},7.94,10.0,{"$f":"(N8+N23)/2","v":0.965},2.01,null,null,null,"Feb",1.46,11.88,1.43,2.6]
["Mar",20.0,{"$f":"(L9+L24)/2","v":0.86},6.47,10.0,{"$f":"(N9+N24)/2","v":0.86},2.155,null,null,null,"Mar",1.05,7.42,1.04,2.49,null,"Whole Installation table A5:G18:"]
["Apr",20.0,{"$f":"(L10+L25)/2","v":0.51},6.525,10.0,{"$f":"(N10+N25)/2","v":0.5},0.84,null,null,null,"Apr",0.36,6.62,0.37,0.76,null,"Mean: for 1/2 hourly and daily periods calculate mean of values across all operational combustion lines for the month"]
["May",20.0,{"$f":"(L11+L26)/2","v":0.395},8.145,10.0,{"$f":"(N11+N26)/2","v":0.395},1.39,null,null,null,"May",0.62,9.45,0.62,1.61]
["Jun",20.0,{"$f":"(L12+L27)/2","v":0.975},8.835,10.0,{"$f":"(N12+N27)/2","v":0.975},1.63,null,null,null,"Jun",1.28,9.11,1.28,2.12]
["Jul",20.0,{"$f":"(L13+L28)/2","v":0.98},9.6,10.0,{"$f":"(N13+N28)/2","v":0.965},1.77,null,null,null,"Jul",0.93,6.53,0.91,1.92,null,"Maximum: for 1/2 hourly and daily periods use the highest value across all operational combustion lines for the month"]
["Aug",20.0,{"$f":"(L14+L29)/2","v":1.585},9.62,10.0,{"$f":"(N14+N29)/2","v":1.595},3.345,null,null,null,"Aug",1.1,9.55,1.12,2.79]
["Sep",20.0,{"$f":"(L15+L30)/2","v":2.51},9.545,10.0,{"$f":"(N15+N30)/2","v":2.505},4.74,null,null,null,"Sep",2.02,9.53,2.01,4.2]
["Oct",20.0,{"$f":"(L16+L31)/2","v":2.225},10.46,10.0,{"$f":"(N16+N31)/2","v":2.24},4.265,null,null,null,"Oct",1.86,10.04,1.88,4.26]
["Nov",20.0,{"$f":"(L17+L32)/2","v":1.16},6.69,10.0,{"$f":"(N17+N32)/2","v":1.155},1.91,null,null,null,"Nov",0.81,6.65,0.81,1.49]
["Dec",20.0,{"$f":"(L18+L33)/2","v":1.865},13.01,10.0,{"$f":"(N18+N33)/2","v":1.835},4.45,null,null,null,"Dec",2.13,9.69,2.06,3.6]
[null,null,null,null,null,null,null,null,null,null,"Annual",{"$f":"AVERAGE(L7:L18)","v":1.319166667},{"$f":"MAX(M7:M18)","v":11.88},{"$f":"AVERAGE(N7:N18)","v":1.311666667},{"$f":"MAX(O7:O18)","v":4.58}]
[]
[null,null,null,null,null,null,null,null,null,{"$f":"+A5","v":2024},"mg/Nm3","Monthly mean of half-hourly averages","Highest half- hourly average","Monthly mean of  daily averages","Highest daily average"]
[null,null,null,null,null,null,null,null,null,"A2","Jan",0.81,6.88,0.81,3.45]
[null,null,null,null,null,null,null,null,null,null,"Feb",0.5,4.0,0.5,1.42]
[null,null,null,null,null,null,null,null,null,null,"Mar",0.67,5.52,0.68,1.82]
[null,null,null,null,null,null,null,null,null,null,"Apr",0.66,6.43,0.63,0.92]
[null,null,null,null,null,null,null,null,null,null,"May",0.17,6.84,0.17,1.17]
[null,null,null,null,null,null,null,null,null,null,"Jun",0.67,8.56,0.67,1.14]
[null,null,null,null,null,null,null,null,null,null,"Jul",1.03,12.67,1.02,1.62]
[null,null,null,null,null,null,null,null,null,null,"Aug",2.07,9.69,2.07,3.9]
[null,null,null,null,null,null,null,null,null,null,"Sep",3.0,9.56,3.0,5.28]
[null,null,null,null,null,null,null,null,null,null,"Oct",2.59,10.88,2.6,4.27]
[null,null,null,null,null,null,null,null,null,null,"Nov",1.51,6.73,1.5,2.33]
[null,null,null,null,null,null,null,null,null,null,"Dec",1.6,16.33,1.61,5.3]
[null,null,null,null,null,null,null,null,null,null,"Annual",{"$f":"AVERAGE(L22:L33)","v":1.273333333},{"$f":"MAX(M22:M33)","v":16.33},{"$f":"AVERAGE(N22:N33)","v":1.271666667},{"$f":"MAX(O22:O33)","v":5.3}]
[]
[null,null,null,null,null,null,null,null,null,{"$f":"+A5","v":2024},"mg/Nm3","Monthly mean of half-hourly averages","Highest half- hourly average","Monthly mean of  daily averages","Highest daily average"]
[null,null,null,null,null,null,null,null,null,"A3","Jan"]
[null,null,null,null,null,null,null,null,null,null,"Feb"]
[null,null,null,null,null,null,null,null,null,null,"Mar"]
[null,null,null,null,null,null,null,null,null,null,"Apr"]
[null,null,null,null,null,null,null,null,null,null,"May"]
[null,null,null,null,null,null,null,null,null,null,"Jun"]
[null,null,null,null,null,null,null,null,null,null,"Jul"]
[null,null,null,null,null,null,null,null,null,null,"Aug"]
[null,null,null,null,null,null,null,null,null,null,"Sep"]
[null,null,null,null,null,null,null,null,null,null,"Oct"]
[null,null,null,null,null,null,null,null,null,null,"Nov"]
["Comments :",null,null,null,null,null,null,null,null,null,"Dec"]
[null,null,null,null,null,null,null,null,null,null,"Annual",{"$f":"AVERAGE(L37:L48)","v":"#DIV/0!"},{"$f":"MAX(M37:M48)","v":0},{"$f":"AVERAGE(N37:N48)","v":"#DIV/0!"},{"$f":"MAX(O37:O48)","v":0}]
[]
[null,null,null,null,null,null,null,null,null,{"$f":"+A5","v":2024},"mg/Nm3","Monthly mean of half-hourly averages","Highest half- hourly average","Monthly mean of  daily averages","Highest daily average"]
[null,null,null,null,null,null,null,null,null,"A4","Jan"]
[null,null,null,null,null,null,null,null,null,null,"Feb"]
[null,null,null,null,null,null,null,null,null,null,"Mar"]
[null,null,null,null,null,null,null,null,null,null,"Apr"]
[null,null,null,null,null,null,null,null,null,null,"May"]
[null,null,null,null,null,null,null,null,null,null,"Jun"]
[null,null,null,null,null,null,null,null,null,null,"Jul"]
[null,null,null,null,null,null,null,null,null,null,"Aug"]
[null,null,null,null,null,null,null,null,null,null,"Sep"]
[null,null,null,null,null,null,null,null,null,null,"Oct"]
[null,null,null,null,null,null,null,null,null,null,"Nov"]
[null,null,null,null,null,null,null,null,null,null,"Dec"]
[null,null,null,null,null,null,null,null,null,null,"Annual",{"$f":"AVERAGE(L52:L63)","v":"#DIV/0!"},{"$f":"MAX(M52:M63)","v":0},{"$f":"AVERAGE(N52:N63)","v":"#DIV/0!"},{"$f":"MAX(O52:O63)","v":0}]
[]
[null,null,null,null,null,null,null,null,null,{"$f":"+A5","v":2024},"mg/Nm3","Monthly mean of half-hourly averages","Highest half- hourly average","Monthly mean of  daily averages","Highest daily average"]
[null,null,null,null,null,null,null,null,null,"A5","Jan"]
[null,null,null,null,null,null,null,null,null,null,"Feb"]
[null,null,null,null,null,null,null,null,null,null,"Mar"]
[null,null,null,null,null,null,null,null,null,null,"Apr"]
[null,null,null,null,null,null,null,null,null,null,"May"]
[null,null,null,null,null,null,null,null,null,null,"Jun"]
[null,null,null,null,null,null,null,null,null,null,"Jul"]
[null,null,null,null,null,null,null,null,null,null,"Aug"]
[null,null,null,null,null,null,null,null,null,null,"Sep"]
[null,null,null,null,null,null,null,null,null,null,"Oct"]
[null,null,null,null,null,null,null,null,null,null,"Nov"]
[null,null,null,null,null,null,null,null,null,null,"Dec"]
[null,null,null,null,null,null,null,null,null,null,"Annual",{"$f":"AVERAGE(L67:L78)","v":"#DIV/0!"},{"$f":"MAX(M67:M78)","v":0},{"$f":"AVERAGE(N67:N78)","v":"#DIV/0!"},{"$f":"MAX(O67:O78)","v":0}]

{"sheet":"Particulates","index":19,"n_rows":79,"n_cols":17,"rows_kept":79,"cut":false,"hidden":false,"merged":[[6,9,18,9],[21,9,33,9],[36,9,48,9],[47,0,47,6],[48,0,51,6],[51,9,63,9],[66,9,78,9],[4,1,4,3],[4,4,4,6],[4,9,4,14],[4,16,8,18],[10,16,12,18],[13,16,16,18],[18,4,18,6]]}
[{"$f":"+'Cover Page'!$B$29","v":"Annual Performance Report 2024"},null,null,null,{"$f":"+'Cover Page'!$B$33","v":"Integra SouthWest Energy Recovery Facility"}]
[]
["Monitoring of Particulate matter emissions",null,null,"Whole Installation",null,null,"See  Notes in Cell Q3",null,null,{"$f":"+A3","v":"Monitoring of Particulate matter emissions"},null,null,null,"Per Combustion Line",null,null,"Notes:"]
[]
[{"$f":"+'Cover Page'!C39","v":2024},"1/2 Hourly Reference Periods",null,null,"Daily Reference Periods",null,null,null,null,null,null,null,null,null,null,null,"User to add logic to complete Whole installation, Table A5:G18. From the data in Per Combustion Line, Table J6:O79, subject to No. of lines installed"]
["mg/Nm3","1/2 hourly PM ELV","Monthly mean of half-hourly averages","Highest half- hourly average","Daily PM ELV","Monthly mean of  daily averages","Highest daily average",null,null,{"$f":"+A5","v":2024},"mg/Nm3","Monthly mean of half-hourly averages","Highest half- hourly average","Monthly mean of  daily averages","Highest daily average"]
["Jan",30.0,{"$f":"(L7+L22)/2","v":0.595},0.87,5.0,{"$f":"(N7+N22)/2","v":0.595},0.685,null,null,"A1","Jan",0.8,1.06,0.8,0.93]
["Feb",30.0,{"$f":"(L8+L23)/2","v":0.59},1.96,5.0,{"$f":"(N8+N23)/2","v":0.59},0.725,null,null,null,"Feb",0.74,0.96,0.74,0.84]
["Mar",30.0,{"$f":"(L9+L24)/2","v":0.65},1.245,5.0,{"$f":"(N9+N24)/2","v":0.65},0.74,null,null,null,"Mar",0.78,0.99,0.78,0.88]
["Apr",30.0,{"$f":"(L10+L25)/2","v":0.875},1.845,5.0,{"$f":"(N10+N25)/2","v":0.855},1.31,null,null,null,"Apr",1.17,2.22,1.15,1.76,null,"Whole Installation table A5:G18:"]
["May",30.0,{"$f":"(L11+L26)/2","v":1.11},2.27,5.0,{"$f":"(N11+N26)/2","v":1.11},1.33,null,null,null,"May",1.16,2.02,1.16,1.24,null,"Mean: for 1/2 hourly and daily periods calculate mean of values across all operational combustion lines for the month"]
["Jun",30.0,{"$f":"(L12+L27)/2","v":1.08},1.895,5.0,{"$f":"(N12+N27)/2","v":1.08},1.245,null,null,null,"Jun",1.14,1.41,1.14,1.23]
["Jul",30.0,{"$f":"(L13+L28)/2","v":1.185},2.9,5.0,{"$f":"(N13+N28)/2","v":1.185},1.425,null,null,null,"Jul",1.22,1.89,1.22,1.32]
["Aug",30.0,{"$f":"(L14+L29)/2","v":1.31},3.33,5.0,{"$f":"(N14+N29)/2","v":1.31},1.635,null,null,null,"Aug",1.25,3.95,1.25,1.74,null,"Maximum: for 1/2 hourly and daily periods use the highest value across all operational combustion lines for the month"]
["Sep",30.0,{"$f":"(L15+L30)/2","v":1.545},5.19,5.0,{"$f":"(N15+N30)/2","v":1.545},1.995,null,null,null,"Sep",1.72,5.79,1.72,2.37]
["Oct",30.0,{"$f":"(L16+L31)/2","v":1.48},2.825,5.0,{"$f":"(N16+N31)/2","v":1.485},1.67,null,null,null,"Oct",1.79,3.14,1.8,2.03]
["Nov",30.0,{"$f":"(L17+L32)/2","v":1.535},2.595,5.0,{"$f":"(N17+N32)/2","v":1.53},1.83,null,null,null,"Nov",1.74,2.67,1.73,2.09]
["Dec",30.0,{"$f":"(L18+L33)/2","v":1.525},4.145,5.0,{"$f":"(N18+N33)/2","v":1.53},2.12,null,null,null,"Dec",1.5,2.4,1.52,1.78]
[null,null,null,null,null,null,null,null,null,null,"Annual",{"$f":"AVERAGE(L7:L18)","v":1.250833333},{"$f":"MAX(M7:M18)","v":5.79},{"$f":"AVERAGE(N7:N18)","v":1.250833333},{"$f":"MAX(O7:O18)","v":2.37}]
[]
[null,null,null,null,null,null,null,null,null,{"$f":"+A5","v":2024},"mg/Nm3","Monthly mean of half-hourly averages","Highest half- hourly average","Monthly mean of  daily averages","Highest daily average"]
[null,null,null,null,null,null,null,null,null,"A2","Jan",0.39,0.68,0.39,0.44]
[null,null,null,null,null,null,null,null,null,null,"Feb",0.44,2.96,0.44,0.61]
[null,null,null,null,null,null,null,null,null,null,"Mar",0.52,1.5,0.52,0.6]
[null,null,null,null,null,null,null,null,null,null,"Apr",0.58,1.47,0.56,0.86]
[null,null,null,null,null,null,null,null,null,null,"May",1.06,2.52,1.06,1.42]
[null,null,null,null,null,null,null,null,null,null,"Jun",1.02,2.38,1.02,1.26]
[null,null,null,null,null,null,null,null,null,null,"Jul",1.15,3.91,1.15,1.53]
[null,null,null,null,null,null,null,null,null,null,"Aug",1.37,2.71,1.37,1.53]
[null,null,null,null,null,null,null,null,null,null,"Sep",1.37,4.59,1.37,1.62]
[null,null,null,null,null,null,null,null,null,null,"Oct",1.17,2.51,1.17,1.31]
[null,null,null,null,null,null,null,null,null,null,"Nov",1.33,2.52,1.33,1.57]
[null,null,null,null,null,null,null,null,null,null,"Dec",1.55,5.89,1.54,2.46]
[null,null,null,null,null,null,null,null,null,null,"Annual",{"$f":"AVERAGE(L22:L33)","v":0.9958333333},{"$f":"MAX(M22:M33)","v":5.89},{"$f":"AVERAGE(N22:N33)","v":0.9933333333},{"$f":"MAX(O22:O33)","v":2.46}]
[]
[null,null,null,null,null,null,null,null,null,{"$f":"+A5","v":2024},"mg/Nm3","Monthly mean of half-hourly averages","Highest half- hourly average","Monthly mean of  daily averages","Highest daily average"]
[null,null,null,null,null,null,null,null,null,"A3","Jan"]
[null,null,null,null,null,null,null,null,null,null,"Feb"]
[null,null,null,null,null,null,null,null,null,null,"Mar"]
[null,null,null,null,null,null,null,null,null,null,"Apr"]
[null,null,null,null,null,null,null,null,null,null,"May"]
[null,null,null,null,null,null,null,null,null,null,"Jun"]
[null,null,null,null,null,null,null,null,null,null,"Jul"]
[null,null,null,null,null,null,null,null,null,null,"Aug"]
[null,null,null,null,null,null,null,null,null,null,"Sep"]
[null,null,null,null,null,null,null,null,null,null,"Oct"]
[null,null,null,null,null,null,null,null,null,null,"Nov"]
["Comments :",null,null,null,null,null,null,null,null,null,"Dec"]
[null,null,null,null,null,null,null,null,null,null,"Annual",{"$f":"AVERAGE(L37:L48)","v":"#DIV/0!"},{"$f":"MAX(M37:M48)","v":0},{"$f":"AVERAGE(N37:N48)","v":"#DIV/0!"},{"$f":"MAX(O37:O48)","v":0}]
[]
[null,null,null,null,null,null,null,null,null,{"$f":"+A5","v":2024},"mg/Nm3","Monthly mean of half-hourly averages","Highest half- hourly average","Monthly mean of  daily averages","Highest daily average"]
[null,null,null,null,null,null,null,null,null,"A4","Jan"]
[null,null,null,null,null,null,null,null,null,null,"Feb"]
[null,null,null,null,null,null,null,null,null,null,"Mar"]
[null,null,null,null,null,null,null,null,null,null,"Apr"]
[null,null,null,null,null,null,null,null,null,null,"May"]
[null,null,null,null,null,null,null,null,null,null,"Jun"]
[null,null,null,null,null,null,null,null,null,null,"Jul"]
[null,null,null,null,null,null,null,null,null,null,"Aug"]
[null,null,null,null,null,null,null,null,null,null,"Sep"]
[null,null,null,null,null,null,null,null,null,null,"Oct"]
[null,null,null,null,null,null,null,null,null,null,"Nov"]
[null,null,null,null,null,null,null,null,null,null,"Dec"]
[null,null,null,null,null,null,null,null,null,null,"Annual",{"$f":"AVERAGE(L52:L63)","v":"#DIV/0!"},{"$f":"MAX(M52:M63)","v":0},{"$f":"AVERAGE(N52:N63)","v":"#DIV/0!"},{"$f":"MAX(O52:O63)","v":0}]
[]
[null,null,null,null,null,null,null,null,null,{"$f":"+A5","v":2024},"mg/Nm3","Monthly mean of half-hourly averages","Highest half- hourly average","Monthly mean of  daily averages","Highest daily average"]
[null,null,null,null,null,null,null,null,null,"A5","Jan"]
[null,null,null,null,null,null,null,null,null,null,"Feb"]
[null,null,null,null,null,null,null,null,null,null,"Mar"]
[null,null,null,null,null,null,null,null,null,null,"Apr"]
[null,null,null,null,null,null,null,null,null,null,"May"]
[null,null,null,null,null,null,null,null,null,null,"Jun"]
[null,null,null,null,null,null,null,null,null,null,"Jul"]
[null,null,null,null,null,null,null,null,null,null,"Aug"]
[null,null,null,null,null,null,null,null,null,null,"Sep"]
[null,null,null,null,null,null,null,null,null,null,"Oct"]
[null,null,null,null,null,null,null,null,null,null,"Nov"]
[null,null,null,null,null,null,null,null,null,null,"Dec"]
[null,null,null,null,null,null,null,null,null,null,"Annual",{"$f":"AVERAGE(L67:L78)","v":"#DIV/0!"},{"$f":"MAX(M67:M78)","v":0},{"$f":"AVERAGE(N67:N78)","v":"#DIV/0!"},{"$f":"MAX(O67:O78)","v":0}]

{"sheet":"CO 95% 10 min","index":20,"n_rows":82,"n_cols":19,"rows_kept":82,"cut":false,"hidden":false,"merged":[[9,10,21,10],[24,10,36,10],[39,10,51,10],[50,0,50,7],[51,0,54,7],[54,10,66,10],[69,10,81,10],[4,0,5,7],[6,18,10,20],[7,1,7,4],[7,5,7,7],[7,10,7,16],[12,18,14,20],[15,18,18,20]]}
[{"$f":"+'Cover Page'!$B$29","v":"Annual Performance Report 2024"},null,null,null,{"$f":"+'Cover Page'!$B$33","v":"Integra SouthWest Energy Recovery Facility"}]
[]
["Monitoring of Carbon Monoxide (10-minute avg)",null,null,null,"Whole Installation",null,null,"See  Notes in Cell S3",null,{"$f":"+A3","v":"Monitoring of Carbon Monoxide (10-minute avg)"},null,null,null,null,"Per Combustion Line",null,"Notes:",null,"Notes:"]
[]
["Please complete this tab for your plant if you have 10-minute average CO ELVs; otherwise, leave it blank and complete the CO 0.5 hourly tab"]
[]
[null,null,null,null,null,null,null,null,null,null,null,null,null,null,null,null,null,null,"User to add logic to complete Whole installation, Table A5:H18. From the data in Per Combustion Line, Table K6:Q79, subject to No. of lines installed"]
[{"$f":"+'Cover Page'!C39","v":2024},"10-minute Reference Periods",null,null,null,"Daily Reference Periods"]
["mg/Nm3","95%ile 10-min avg CO ELV","Highest daily 95%ile 10-min average","Monthly mean of 10-min averages","Highest 10-min average","Daily CO ELV","Monthly mean of  daily averages","Highest daily average",null,null,{"$f":"+A8","v":2024},"mg/Nm3","Highest daily 95%ile 10-min average","Monthly mean of 10-min averages","Highest 10-min average","Monthly mean of  daily averages","Highest daily average"]
["Jan",150.0,{"$f":"(M10+M25)/2","v":38.74},10.37,265.15,50.0,{"$f":"(P10+P25)/2","v":10.385},16.905,null,null,"A1","Jan",37.1,10.49,257.33,10.5,15.64]
["Feb",{"$f":"+B10","v":150},{"$f":"(M11+M26)/2","v":63.665},13.125,643.405,{"$f":"+F10","v":50},{"$f":"(P11+P26)/2","v":13.195},25.53,null,null,null,"Feb",57.58,14.53,595.38,14.67,23.88]
["Mar",150,{"$f":"(M12+M27)/2","v":71.495},16.615,482.68,50,{"$f":"(P12+P27)/2","v":16.62},24.94,null,null,null,"Mar",72.5,17.09,371.31,17.09,23.17,null,"Whole Installation table A5:H18:"]
["Apr",150,{"$f":"(M13+M28)/2","v":61.1},12.035,596.77,50,{"$f":"(P13+P28)/2","v":11.6},17.615,null,null,null,"Apr",44.48,12.74,380.48,12.81,17.67,null,"Mean: for 10-min and daily periods use average of all operational combustion lines."]
["May",150,{"$f":"(M14+M29)/2","v":83.44},13.125,945.825,50,{"$f":"(P14+P29)/2","v":13.13},22.74,null,null,null,"May",89.54,14.18,766.79,14.18,26.69]
["Jun",150,{"$f":"(M15+M30)/2","v":81.395},13.76,824.6,50,{"$f":"(P15+P30)/2","v":13.77},21.465,null,null,null,"Jun",93.34,14.9,528.75,14.91,22.17]
["Jul",150,{"$f":"(M16+M31)/2","v":93.8},15.105,543.285,50,{"$f":"(P16+P31)/2","v":14.975},23.13,null,null,null,"Jul",97.08,14.98,787.98,14.76,24.05,null,"Maximum: for 10-min and daily periods use the highest of all operational combustion lines in any month."]
["Aug",150,{"$f":"(M17+M32)/2","v":79.19},13.045,399.215,50,{"$f":"(P17+P32)/2","v":13.055},20.13,null,null,null,"Aug",69.96,10.66,280.87,10.65,15.13]
["Sep",150,{"$f":"(M18+M33)/2","v":98.165},16.22,464.745,50,{"$f":"(P18+P33)/2","v":16.19},30.865,null,null,null,"Sep",69.94,15.23,449.61,15.1,22.13]
["Oct",150,{"$f":"(M19+M34)/2","v":89.39},14.32,1141.485,50,{"$f":"(P19+P34)/2","v":14.33},29.88,null,null,null,"Oct",62.49,12.74,1344.25,12.78,23.7]
["Nov",150,{"$f":"(M20+M35)/2","v":80.305},14.48,831.985,50,{"$f":"(P20+P35)/2","v":14.395},20.15,null,null,null,"Nov",68.72,11.72,855.32,11.54,17.13]
["Dec",150,{"$f":"(M21+M36)/2","v":82.14},13.58,547.745,50,{"$f":"(P21+P36)/2","v":13.545},22.015,null,null,null,"Dec",75.04,10.91,391.62,10.84,20.25]
[null,null,null,null,null,null,null,null,null,null,null,"Annual",{"$f":"AVERAGE(M10:M21)","v":69.81416667},null,{"$f":"MAX(O10:O21)","v":1344.25},{"$f":"AVERAGE(P10:P21)","v":13.31916667},{"$f":"MAX(Q10:Q21)","v":26.69}]
[]
[null,null,null,null,null,null,null,null,null,null,{"$f":"+A8","v":2024},"mg/Nm3","Highest daily 95%ile 10-min average","Monthly mean of 10-min averages","Highest 10-min average","Monthly mean of  daily averages","Highest daily average"]
[null,null,null,null,null,null,null,null,null,null,"A2","Jan",40.38,10.25,272.97,10.27,18.17]
[null,null,null,null,null,null,null,null,null,null,null,"Feb",69.75,11.72,691.43,11.72,27.18]
[null,null,null,null,null,null,null,null,null,null,null,"Mar",70.49,16.14,594.05,16.15,26.71]
[null,null,null,null,null,null,null,null,null,null,null,"Apr",77.72,11.33,813.06,10.39,17.56]
[null,null,null,null,null,null,null,null,null,null,null,"May",77.34,12.07,1124.86,12.08,18.79]
[null,null,null,null,null,null,null,null,null,null,null,"Jun",69.45,12.62,1120.45,12.63,20.76]
[null,null,null,null,null,null,null,null,null,null,null,"Jul",90.52,15.23,298.59,15.19,22.21]
[null,null,null,null,null,null,null,null,null,null,null,"Aug",88.42,15.43,517.56,15.46,25.13]
[null,null,null,null,null,null,null,null,null,null,null,"Sep",126.39,17.21,479.88,17.28,39.6]
[null,null,null,null,null,null,null,null,null,null,null,"Oct",116.29,15.9,938.72,15.88,36.06]
[null,null,null,null,null,null,null,null,null,null,null,"Nov",91.89,17.24,808.65,17.25,23.17]
[null,null,null,null,null,null,null,null,null,null,null,"Dec",89.24,16.25,703.87,16.25,23.78]
[null,null,null,null,null,null,null,null,null,null,null,"Annual",{"$f":"AVERAGE(M25:M36)","v":83.99},null,{"$f":"MAX(O25:O36)","v":1124.86},{"$f":"AVERAGE(P25:P36)","v":14.2125},{"$f":"MAX(Q25:Q36)","v":39.6}]
[]
[null,null,null,null,null,null,null,null,null,null,{"$f":"+A8","v":2024},"mg/Nm3","Highest daily 95%ile 10-min average","Monthly mean of 10-min averages","Highest 10-min average","Monthly mean of  daily averages","Highest daily average"]
[null,null,null,null,null,null,null,null,null,null,"A3","Jan"]
[null,null,null,null,null,null,null,null,null,null,null,"Feb"]
[null,null,null,null,null,null,null,null,null,null,null,"Mar"]
[null,null,null,null,null,null,null,null,null,null,null,"Apr"]
[null,null,null,null,null,null,null,null,null,null,null,"May"]
[null,null,null,null,null,null,null,null,null,null,null,"Jun"]
[null,null,null,null,null,null,null,null,null,null,null,"Jul"]
[null,null,null,null,null,null,null,null,null,null,null,"Aug"]
[null,null,null,null,null,null,null,null,null,null,null,"Sep"]
[null,null,null,null,null,null,null,null,null,null,null,"Oct"]
[null,null,null,null,null,null,null,null,null,null,null,"Nov"]
["Comments :",null,null,null,null,null,null,null,null,null,null,"Dec"]
["Environment Agency explanatory note: The 10-minute average ELV is based on the “95th percentile”. In this case this means that 95% of the 10 minute averages in the relevant 24-hour period (i.e. 137) must be below 150 mg/Nm3, and 5% (i.e. 7) are allowed to be any value above 150 mg/Nm3. Whilst we expect operators to minimise CO emissions at all times, it is perfectly acceptable for the value of the maximum 10-minute average to be above 150 mg/Nm3, provided the 95th percentile ELV has been met for that period. ",null,null,null,null,null,null,null,null,null,null,"Annual",{"$f":"AVERAGE(M40:M51)","v":"#DIV/0!"},null,{"$f":"MAX(O40:O51)","v":0},{"$f":"AVERAGE(P40:P51)","v":"#DIV/0!"},{"$f":"MAX(Q40:Q51)","v":0}]
[]
[null,null,null,null,null,null,null,null,null,null,{"$f":"+A8","v":2024},"mg/Nm3","Highest daily 95%ile 10-min average","Monthly mean of 10-min averages","Highest 10-min average","Monthly mean of  daily averages","Highest daily average"]
[null,null,null,null,null,null,null,null,null,null,"A4","Jan"]
[null,null,null,null,null,null,null,null,null,null,null,"Feb"]
[null,null,null,null,null,null,null,null,null,null,null,"Mar"]
[null,null,null,null,null,null,null,null,null,null,null,"Apr"]
[null,null,null,null,null,null,null,null,null,null,null,"May"]
[null,null,null,null,null,null,null,null,null,null,null,"Jun"]
[null,null,null,null,null,null,null,null,null,null,null,"Jul"]
[null,null,null,null,null,null,null,null,null,null,null,"Aug"]
[null,null,null,null,null,null,null,null,null,null,null,"Sep"]
[null,null,null,null,null,null,null,null,null,null,null,"Oct"]
[null,null,null,null,null,null,null,null,null,null,null,"Nov"]
[null,null,null,null,null,null,null,null,null,null,null,"Dec"]
[null,null,null,null,null,null,null,null,null,null,null,"Annual",{"$f":"AVERAGE(M55:M66)","v":"#DIV/0!"},null,{"$f":"MAX(O55:O66)","v":0},{"$f":"AVERAGE(P55:P66)","v":"#DIV/0!"},{"$f":"MAX(Q55:Q66)","v":0}]
[]
[null,null,null,null,null,null,null,null,null,null,{"$f":"+A8","v":2024},"mg/Nm3","95%ile 10-min avg maximum","Monthly CO 10-min avg mean","10-min avg maximum","Monthly daily mean","Monthly daily maximum"]
[null,null,null,null,null,null,null,null,null,null,"A5","Jan"]
[null,null,null,null,null,null,null,null,null,null,null,"Feb"]
[null,null,null,null,null,null,null,null,null,null,null,"Mar"]
[null,null,null,null,null,null,null,null,null,null,null,"Apr"]
[null,null,null,null,null,null,null,null,null,null,null,"May"]
[null,null,null,null,null,null,null,null,null,null,null,"Jun"]
[null,null,null,null,null,null,null,null,null,null,null,"Jul"]
[null,null,null,null,null,null,null,null,null,null,null,"Aug"]
[null,null,null,null,null,null,null,null,null,null,null,"Sep"]
[null,null,null,null,null,null,null,null,null,null,null,"Oct"]
[null,null,null,null,null,null,null,null,null,null,null,"Nov"]
[null,null,null,null,null,null,null,null,null,null,null,"Dec"]
[null,null,null,null,null,null,null,null,null,null,null,"Annual",{"$f":"AVERAGE(M70:M81)","v":"#DIV/0!"},null,{"$f":"MAX(O70:O81)","v":0},{"$f":"AVERAGE(P70:P81)","v":"#DIV/0!"},{"$f":"MAX(Q70:Q81)","v":0}]

{"sheet":"NH3","index":21,"n_rows":79,"n_cols":17,"rows_kept":79,"cut":false,"hidden":false,"merged":[[6,9,18,9],[21,9,33,9],[36,9,48,9],[47,0,47,6],[48,0,51,6],[51,9,63,9],[66,9,78,9],[3,16,7,18],[4,1,4,3],[4,4,4,6],[4,9,4,14],[9,16,11,18],[12,16,15,18],[18,4,18,6]]}
[{"$f":"+'Cover Page'!$B$29","v":"Annual Performance Report 2024"},null,null,null,{"$f":"+'Cover Page'!$B$33","v":"Integra SouthWest Energy Recovery Facility"}]
[]
["Monitoring of Ammnonia emissions ",null,null,"Whole Installation",null,null,"See  Notes in Cell Q3",null,null,{"$f":"+A3","v":"Monitoring of Ammnonia emissions "},null,null,null,"Per Combustion Line",null,null,"Notes:"]
[null,null,null,null,null,null,null,null,null,null,null,null,null,null,null,null,"User to add logic to complete Whole installation, Table A5:G18. From the data in Per Combustion Line, Table J6:O79, subject to No. of lines installed"]
[{"$f":"+'Cover Page'!C39","v":2024},"1/2 Hourly Reference Periods",null,null,"Daily Reference Periods"]
["mg/Nm3","1/2 hourly NH3 ELV","Monthly mean of half-hourly averages","Highest half- hourly average","Daily NH3 ELV","Monthly mean of  daily averages","Highest daily average",null,null,{"$f":"+A5","v":2024},"mg/Nm3","Monthly mean of half-hourly averages","Highest half- hourly average","Monthly mean of  daily averages","Highest daily average"]
["Jan","None",{"$f":"(L7+L22)/2","v":3.065},11.245,15.0,{"$f":"(N7+N22)/2","v":3.07},5.09,null,null,"A1","Jan",2.14,9.18,2.14,4.28]
["Feb",{"$f":"+B7","v":"None"},{"$f":"(L8+L23)/2","v":4.9},15.385,15.0,{"$f":"(N8+N23)/2","v":4.975},8.585,null,null,null,"Feb",5.62,17.16,5.77,10.99]
["Mar","None",{"$f":"(L9+L24)/2","v":6.56},21.69,15.0,{"$f":"(N9+N24)/2","v":6.585},10.645,null,null,null,"Mar",8.09,21.78,8.12,12.52,null,"Whole Installation table A5:G18:"]
["Apr","None",{"$f":"(L10+L25)/2","v":7.1},16.28,15.0,{"$f":"(N10+N25)/2","v":7.085},10.9,null,null,null,"Apr",8.43,15.79,8.42,11.41,null,"Mean: for 1/2 hourly and daily periods calculate mean of values across all operational combustion lines for the month"]
["May","None",{"$f":"(L11+L26)/2","v":8.46},17.81,15.0,{"$f":"(N11+N26)/2","v":8.465},12.34,null,null,null,"May",7.11,16.73,7.12,11.17]
["Jun","None",{"$f":"(L12+L27)/2","v":6.355},15.44,15.0,{"$f":"(N12+N27)/2","v":6.355},8.835,null,null,null,"Jun",7.05,20.24,7.05,10.07]
["Jul","None",{"$f":"(L13+L28)/2","v":7.19},17.105,15.0,{"$f":"(N13+N28)/2","v":7.19},9.665,null,null,null,"Jul",8.16,22.36,8.16,11.38,null,"Maximum: for 1/2 hourly and daily periods use the highest value across all operational combustion lines for the month"]
["Aug","None",{"$f":"(L14+L29)/2","v":6.72},13.28,15.0,{"$f":"(N14+N29)/2","v":6.72},9.435,null,null,null,"Aug",6.21,13.4,6.21,9.61]
["Sep","None",{"$f":"(L15+L30)/2","v":5.085},14.65,15.0,{"$f":"(N15+N30)/2","v":5.075},7.015,null,null,null,"Sep",5.83,12.98,5.81,7.25]
["Oct","None",{"$f":"(L16+L31)/2","v":5.515},15.585,15.0,{"$f":"(N16+N31)/2","v":5.545},8.275,null,null,null,"Oct",6.69,13.16,6.72,9.49]
["Nov","None",{"$f":"(L17+L32)/2","v":5.11},14.84,15.0,{"$f":"(N17+N32)/2","v":5.165},8.63,null,null,null,"Nov",6.0,15.16,6.1,8.96]
["Dec","None",{"$f":"(L18+L33)/2","v":4.015},13.47,15.0,{"$f":"(N18+N33)/2","v":4.01},7.275,null,null,null,"Dec",4.85,12.36,4.83,7.96]
[null,null,null,null,null,null,null,null,null,null,"Annual",{"$f":"AVERAGE(L7:L18)","v":6.348333333},{"$f":"MAX(M7:M18)","v":22.36},{"$f":"AVERAGE(N7:N18)","v":6.370833333},{"$f":"MAX(O7:O18)","v":12.52}]
[]
[null,null,null,null,null,null,null,null,null,{"$f":"+A5","v":2024},"mg/Nm3","Monthly mean of half-hourly averages","Highest half- hourly average","Monthly mean of  daily averages","Highest daily average"]
[null,null,null,null,null,null,null,null,null,"A2","Jan",3.99,13.31,4.0,5.9]
[null,null,null,null,null,null,null,null,null,null,"Feb",4.18,13.61,4.18,6.18]
[null,null,null,null,null,null,null,null,null,null,"Mar",5.03,21.6,5.05,8.77]
[null,null,null,null,null,null,null,null,null,null,"Apr",5.77,16.77,5.75,10.39]
[null,null,null,null,null,null,null,null,null,null,"May",9.81,18.89,9.81,13.51]
[null,null,null,null,null,null,null,null,null,null,"Jun",5.66,10.64,5.66,7.6]
[null,null,null,null,null,null,null,null,null,null,"Jul",6.22,11.85,6.22,7.95]
[null,null,null,null,null,null,null,null,null,null,"Aug",7.23,13.16,7.23,9.26]
[null,null,null,null,null,null,null,null,null,null,"Sep",4.34,16.32,4.34,6.78]
[null,null,null,null,null,null,null,null,null,null,"Oct",4.34,18.01,4.37,7.06]
[null,null,null,null,null,null,null,null,null,null,"Nov",4.22,14.52,4.23,8.3]
[null,null,null,null,null,null,null,null,null,null,"Dec",3.18,14.58,3.19,6.59]
[null,null,null,null,null,null,null,null,null,null,"Annual",{"$f":"AVERAGE(L22:L33)","v":5.330833333},{"$f":"MAX(M22:M33)","v":21.6},{"$f":"AVERAGE(N22:N33)","v":5.335833333},{"$f":"MAX(O22:O33)","v":13.51}]
[]
[null,null,null,null,null,null,null,null,null,{"$f":"+A5","v":2024},"mg/Nm3","Monthly mean of half-hourly averages","Highest half- hourly average","Monthly mean of  daily averages","Highest daily average"]
[null,null,null,null,null,null,null,null,null,"A3","Jan"]
[null,null,null,null,null,null,null,null,null,null,"Feb"]
[null,null,null,null,null,null,null,null,null,null,"Mar"]
[null,null,null,null,null,null,null,null,null,null,"Apr"]
[null,null,null,null,null,null,null,null,null,null,"May"]
[null,null,null,null,null,null,null,null,null,null,"Jun"]
[null,null,null,null,null,null,null,null,null,null,"Jul"]
[null,null,null,null,null,null,null,null,null,null,"Aug"]
[null,null,null,null,null,null,null,null,null,null,"Sep"]
[null,null,null,null,null,null,null,null,null,null,"Oct"]
[null,null,null,null,null,null,null,null,null,null,"Nov"]
["Comments :",null,null,null,null,null,null,null,null,null,"Dec"]
["An indicated ELV value of zero in the table above means that no ammonia limit is/was set in the permit.  ",null,null,null,null,null,null,null,null,null,"Annual",{"$f":"AVERAGE(L37:L48)","v":"#DIV/0!"},{"$f":"MAX(M37:M48)","v":0},{"$f":"AVERAGE(N37:N48)","v":"#DIV/0!"},{"$f":"MAX(O37:O48)","v":0}]
[]
[null,null,null,null,null,null,null,null,null,{"$f":"+A5","v":2024},"mg/Nm3","Monthly mean of half-hourly averages","Highest half- hourly average","Monthly mean of  daily averages","Highest daily average"]
[null,null,null,null,null,null,null,null,null,"A4","Jan"]
[null,null,null,null,null,null,null,null,null,null,"Feb"]
[null,null,null,null,null,null,null,null,null,null,"Mar"]
[null,null,null,null,null,null,null,null,null,null,"Apr"]
[null,null,null,null,null,null,null,null,null,null,"May"]
[null,null,null,null,null,null,null,null,null,null,"Jun"]
[null,null,null,null,null,null,null,null,null,null,"Jul"]
[null,null,null,null,null,null,null,null,null,null,"Aug"]
[null,null,null,null,null,null,null,null,null,null,"Sep"]
[null,null,null,null,null,null,null,null,null,null,"Oct"]
[null,null,null,null,null,null,null,null,null,null,"Nov"]
[null,null,null,null,null,null,null,null,null,null,"Dec"]
[null,null,null,null,null,null,null,null,null,null,"Annual",{"$f":"AVERAGE(L52:L63)","v":"#DIV/0!"},{"$f":"MAX(M52:M63)","v":0},{"$f":"AVERAGE(N52:N63)","v":"#DIV/0!"},{"$f":"MAX(O52:O63)","v":0}]
[]
[null,null,null,null,null,null,null,null,null,{"$f":"+A5","v":2024},"mg/Nm3","Monthly mean of half-hourly averages","Highest half- hourly average","Monthly mean of  daily averages","Highest daily average"]
[null,null,null,null,null,null,null,null,null,"A5","Jan"]
[null,null,null,null,null,null,null,null,null,null,"Feb"]
[null,null,null,null,null,null,null,null,null,null,"Mar"]
[null,null,null,null,null,null,null,null,null,null,"Apr"]
[null,null,null,null,null,null,null,null,null,null,"May"]
[null,null,null,null,null,null,null,null,null,null,"Jun"]
[null,null,null,null,null,null,null,null,null,null,"Jul"]
[null,null,null,null,null,null,null,null,null,null,"Aug"]
[null,null,null,null,null,null,null,null,null,null,"Sep"]
[null,null,null,null,null,null,null,null,null,null,"Oct"]
[null,null,null,null,null,null,null,null,null,null,"Nov"]
[null,null,null,null,null,null,null,null,null,null,"Dec"]
[null,null,null,null,null,null,null,null,null,null,"Annual",{"$f":"AVERAGE(L67:L78)","v":"#DIV/0!"},{"$f":"MAX(M67:M78)","v":0},{"$f":"AVERAGE(N67:N78)","v":"#DIV/0!"},{"$f":"MAX(O67:O78)","v":0}]

{"sheet":"Template changes log","index":22,"n_rows":18,"n_cols":3,"rows_kept":18,"cut":false,"hidden":false,"merged":[]}
["Log of changes to template (Environment Agency use only)"]
[]
["Date","Description of change","New version number and date"]
["2024-01-16","Air (periodic) tab: corrected default O2 reference from 6 to 11% ","Version 23.5a (for incinerators) - 16/01/2024"]
["2024-09-23","Air (periodic) tab: corrected symbol for Thallium to Tl"]
["2024-09-23","Air (periodic) tab: removed last year's references to different emission limit values applying from 03/12/23 and updated all relevant ELVs"]
["2024-09-23","Tabs for continuously monitored pollutants (HCl, SO2 etc.): changed terminology in table headings to improve clarity"]
["2024-09-23","Tabs for continuously monitored pollutants (HCl, SO2 etc.): removed last year's references to different emission limit values applying from 03/12/23 and updated all relevant ELVs"]
["2024-09-23","Perf 1 tab: updated formula for water usage to report m3 rather than litres and corrected error with formula copying operator name"]
["2024-09-23","Operational Summary tab: table added on start-ups and shut-downs"]
["2024-09-23","Operational Summary tab: table added on dioxins and mercury protocols"]
["2024-09-23","Operational Summary tab: table added on AST, QAL 2 and calibration functions"]
["2024-09-23","CO2 N2O tab: various changes made to notes to reflect the fact that most plants should now have calibrated CEMS and flow meters + some have C14 samplers and more up to date industry data","Version 24a (for incinerators) - 23/09/24"]
["2024-11-08","CO2 N2O tab: Changed the N2O CO2 equivalence factor from 298 to 265 in line with recently updated government greenhouse gas figures: https://www.gov.uk/government/publications/greenhouse-gas-reporting-conversion-factors-2024"]
["2024-11-08","CO2 N2O tab: Added an additional requirement for municipal EfW plants to state the yearly average biogenic percentage of the waste by mass, and reference to a document which sets out a methodology for calculating NCV of waste from the results of C14 sampling."]
["2024-11-08","Permit Compliance tab: Two additional columns added + explanatory notes to the table entitled \"Summary of non-compliances under the permit\" to allow CCS scores to be stated where relevant. "]
["2024-11-08","Residue Quality tab: Note added explaining application of TOC and LOI limits and asking operators to report both metrics where measured. ","Version 24.1a (for incinerators) - 08/11/24"]
["2024-11-27","Operational Summary tab: Tables on mercury & dioxins protocols and ASTs removed (covered instead by new tables added to updated Air 9 periodic monitoring form)","Version 24.2a (for incinerators) - 27/11/24"]